{"text_format":"1","workbook":"xlsx","n_sheets":10,"sheets":["Adatok","Test Line","Complex Hand Signal DevelopPlan","Technical Information","Settings","Grafikus info","Temp","Temp Korabban Nem OK 3","Temp Korabban Nem OK 4","Munka1"],"not_rendered":{"charts":0,"images":1,"macros":1,"external_links":0,"defined_names":16,"comments":0,"pivot_tables":0},"unopened":[],"bounds":{"document_bytes":16777216,"sheet_cells":100000,"rows_first":2000,"rows_last":500,"rows_between":2000,"halvings":0,"cell_chars":16384,"cell_head_chars":4096},"cells_cut":0,"cells_raw":0,"read":"whole","date_system":"1900"}

{"sheet":"Adatok","index":0,"n_rows":69,"n_cols":78,"rows_kept":69,"cut":false,"hidden":true,"merged":[[1,71,1,76],[1,47,1,64],[1,29,1,37],[1,13,1,28],[1,5,1,6],[1,7,1,8],[1,38,1,46],[1,65,1,70]]}
[]
["Sequence number ","Task 1","Task 2","Task 3","Task 4","Nature of association",null,"Number of hands",null,"Active hand form 1","Active hand form 2","Passive hand form 1","Passive hand form 2","Movements",null,null,null,null,null,null,null,null,null,null,null,null,null,null,null,"Areas touched by active hands",null,null,null,null,null,null,null,null,"Areas affected by passive hands",null,null,null,null,null,null,null,null,"Body parts",null,null,null,null,null,null,null,null,null,null,null,null,null,null,null,null,null,"Active",null,null,null,null,null,"Passive"]
[null,"Hand shape","hand shape gymnastics","Movement","Sign-Word-Treasure\n","Visual","Motorized ","One-handed","Two-handed",null,null,null,null,"Opening ","Closing","Up","Down","Towards the body","Away from the body ","Up and down","Back and forth","Cross-Move","X-Move","Infinity ","Clockwise direction\n","Counter-clockwise direction\n","Wave","Zigzag","Fine movement","Active space 1\n","Active space 2","Active space 3","Active space 4","Active space 5","Active space 6","Active space 7","Active space 8","Active space 9","Passive space\n 1","Passive space 2","Passive space\n 3","Passive space\n 4","Passive space\n 5","Passive space\n 6","Passive space\n 7","Passive space\n 8","Passive space\n 9","Head","Forehead/Temple","Eye/Eyebrows","Nose","Mouth","Chin","Cheek","Ear","Neck","Chest","\nAbdomen","Back","Hip","Thigh","Knee","Leg","Ankle","Foot","Active shoulder","Active upper arm","Active elbow","Active forearm","Active wrist","Active nail","Passive shoulder","Passive upper arm","Passive elbow","Passive forearm","Passive wrist","Passive nail"]
["1/3","S-1","B+1","Szabadság jelv.",null,null,"x",null,"x","S-1",null,"S-1",null,null,null,"x",null,null,"x",null,null,null,null,null,null,null,null,null,null,null,null,null,null,"x",null,null,"x","x",null,null,null,null,"x",null,"x","x",null,null,null,null,null,null,null,null,null,null,"x",null,null,null,null,null,null,null,null,"x","x","x","x","x",null,"x","x","x","x","x",null,{"$f":"RIGHT(A4,2)","v":"/3"}]
["1/4","S-1",null,null,"Sün","x",null,null,"x",4,null,"S-1",null,null,null,null,null,null,null,null,null,null,null,null,null,null,null,null,null,null,null,null,null,"x",null,null,null,null,null,null,null,null,"x",null,null,null,null,null,null,null,null,null,null,null,null,null,null,null,null,null,null,null,null,null,null,null,null,null,null,null,null,null,null,null,null,null,null,{"$f":"RIGHT(A5,2)","v":"/4"}]
["2/3","S","A","Combhoz leeresztés",null,null,null,null,"x","S ",null,"S ",null,null,null,null,"x","x","x",null,null,null,null,null,null,null,null,null,null,null,"x",null,null,"x",null,null,null,null,null,"x",null,null,"x",null,null,null,null,null,null,null,null,null,null,null,null,null,null,null,null,null,"x",null,null,null,null,null,null,"x","x",null,null,null,null,"x","x",null,null,"/3"]
["2/4","S",null,null,"Bicikli","x","x",null,"x","S ",null,"S",null,null,null,"x","x","x","x","x",null,null,null,null,null,null,null,null,null,null,null,null,null,"x",null,null,null,null,null,null,null,null,"x",null,null,null,null,null,null,null,null,null,null,null,null,null,null,null,null,null,null,null,null,null,null,null,"x","x","x",null,null,null,"x","x","x",null,null,"/4"]
["3/3","A","A+1","Ablakpucolás",null,null,"x","x",null,"A ",null,null,null,null,null,null,null,null,null,null,null,null,null,null,null,"x",null,null,null,null,null,null,null,"x","x",null,"x","x",null,null,null,null,null,null,null,null,null,null,null,null,null,null,null,null,null,null,null,null,null,null,null,null,null,null,null,"x","x",null,null,null,null,null,null,null,null,null,null,"/3"]
["3/4","A",null,null,"Igen",null,"x","x",null,"A",null,null,null,null,null,"x","x",null,null,"x",null,null,null,null,null,null,null,null,null,null,null,null,null,"x",null,null,null,null,null,null,null,null,null,null,null,null,null,null,null,null,null,null,null,null,null,null,null,null,null,null,null,null,null,null,null,null,null,null,"x","x",null,null,null,null,null,null,null,"/4"]
["4/3","A+1","B+1","Testtől eltolás",null,null,null,"x",null,"A+1",null,null,null,null,null,null,null,"x","x",null,"x",null,null,null,null,null,null,null,null,null,null,null,null,"x",null,null,null,null,null,null,null,null,null,null,null,null,null,null,null,null,null,null,null,null,null,null,"x",null,null,null,null,null,null,null,null,"x","x","x","x",null,null,null,null,null,null,null,null,"/3"]
["4/4","A+1",null,null,"Tehén","x",null,null,"x","A+1",null,"A+1",null,null,null,null,null,"x","x",null,"x",null,null,null,null,null,null,null,null,null,null,null,null,null,null,null,"x","x",null,null,null,null,null,null,"x","x",null,null,"x",null,null,null,null,null,null,null,null,null,null,null,null,null,null,null,null,null,null,"x","x",null,null,null,null,"x","x",null,null,"/4"]
["5/3","A-t","A","Cimbalmozás",null,null,"x",null,"x","A-t",null,"A-t",null,null,null,"x","x",null,null,"x",null,null,null,null,null,null,null,null,null,null,null,null,null,"x",null,null,null,null,null,null,null,null,"x",null,null,null,null,null,null,null,null,null,null,null,null,null,null,null,null,null,null,null,null,null,null,null,null,null,"x","x",null,null,null,null,"x","x",null,"/3"]
["5/4","A-t",null,null,"Főz",null,"x","x",null,"A-t",null,null,null,null,null,null,null,"x","x",null,null,null,null,null,"x",null,null,null,null,null,null,null,null,"x",null,null,null,null,null,null,null,null,null,null,null,null,null,null,null,null,null,null,null,null,null,null,null,null,null,null,null,null,null,null,null,null,null,null,"x","x",null,null,null,null,null,null,null,"/4"]
["6/3","O-1-2","F","Lyukon kukucskálás",null,"x",null,"x",null,"O-1-2",null,"O-1-2",null,"x",null,null,null,null,null,null,null,null,null,null,null,null,null,null,null,null,null,null,null,null,null,null,"x",null,null,null,null,null,null,null,null,"x",null,null,null,"x",null,null,null,null,null,null,null,null,null,null,null,null,null,null,null,null,null,null,null,null,null,null,null,null,null,null,null,"/3"]
["6/4","O-1-2",null,null,"Falevél","x",null,null,"x","O-1-2","C-1-2","O-1-2",null,"x","x","x","x",null,null,null,null,null,null,null,null,null,"x",null,null,null,null,null,null,"x",null,null,null,null,null,null,null,null,"x",null,null,null,null,null,null,null,null,null,null,null,null,null,null,null,null,null,null,null,null,null,null,null,"x","x","x","x",null,null,null,null,null,null,null,"/4"]
["7/3","C-1-2","O-1-2","Oldalra kinyújtás",null,null,null,null,"x","C-1-2",null,"C-1-2",null,null,null,null,null,"x","x",null,"x",null,null,null,null,null,null,null,null,null,null,null,null,null,null,null,"x","x",null,null,null,null,null,null,"x","x",null,null,null,null,null,null,null,null,null,null,null,null,null,null,null,null,null,null,null,"x","x","x","x",null,null,"x","x","x","x",null,null,"/3"]
["7/4","C-1-2",null,null,"Szivárvány","x",null,"x",null,"C-1-2",null,null,null,null,null,"x","x",null,null,null,null,null,null,null,null,null,null,null,null,null,null,null,"x",null,"x","x","x","x",null,null,null,null,null,null,null,null,null,null,null,null,null,null,null,null,null,null,null,null,null,null,null,null,null,null,null,"x","x","x","x","x",null,null,null,null,null,null,null,"/4"]
["8/3","O-1-2/","C-1-2/","Hullám és cikk-cakk",null,null,null,"x",null,"O-1-2/",null,null,null,null,null,"x","x",null,null,"x",null,null,null,null,null,null,"x","x",null,null,null,null,"x","x","x",null,null,null,null,null,null,null,null,null,null,null,null,null,null,null,null,null,null,null,null,null,null,null,null,null,null,null,null,null,null,"x","x","x","x","x",null,null,null,null,null,null,null,"/3"]
["8/4","O-1-2/",null,null,"Só",null,"x","x",null,"O-1-2/",null,null,null,null,null,null,null,null,null,null,null,null,null,null,null,null,null,null,"x",null,null,null,null,"x",null,null,null,null,null,null,null,null,null,null,null,null,null,null,null,null,null,null,null,null,null,null,null,null,null,null,null,null,null,null,null,null,null,null,null,null,null,null,null,null,null,null,null,"/4"]
["9/3","C-1-2/","C/","Végtelen",null,null,null,"x",null,"C-1-2/",null,null,null,null,null,null,null,null,null,null,"x",null,null,"x",null,null,null,null,null,null,null,null,"x","x","x",null,null,null,null,null,null,null,null,null,null,null,null,null,null,null,null,null,null,null,null,null,null,null,null,null,null,null,null,null,null,"x","x","x","x","x",null,null,null,null,null,null,null,"/3"]
["9/4","C-1-2/",null,null,"Tyúk","x","x","x",null,"C-1-2/","O-1-2/",null,null,"x","x",null,null,null,null,null,null,null,null,null,null,null,null,null,null,null,null,null,null,null,null,null,"x",null,null,null,null,null,null,null,null,null,null,null,null,null,null,"x",null,null,null,null,null,null,null,null,null,null,null,null,null,null,null,null,null,null,null,null,null,null,null,null,null,"/4"]
["10/3","G","S","Sétálás",null,"x","x",null,"x","G",null,"G",null,null,null,"x","x",null,"x","x",null,null,null,null,null,null,null,null,null,null,null,null,null,"x",null,null,"x",null,null,null,null,null,"x",null,null,"x",null,null,null,null,null,null,null,null,null,null,null,null,null,null,null,null,null,null,null,"x","x","x","x",null,null,"x","x","x","x",null,null,"/3"]
["10/4","G",null,null,"Csönd jelv.",null,null,null,"x","G",null,"G",null,null,null,null,null,"x",null,null,null,"x",null,null,null,null,null,null,null,null,null,null,null,null,null,null,"x",null,null,null,null,null,null,null,null,"x",null,null,null,null,null,"x",null,null,null,null,null,null,null,null,null,null,null,null,null,null,null,"x","x","x",null,null,null,"x","x","x",null,"/4"]
["11/3","L",3,"Kitekintés",null,"x",null,null,"x","L",null,"L",null,null,null,null,null,null,null,null,null,null,null,null,null,null,null,null,null,null,null,null,null,null,null,null,"x",null,null,null,null,null,null,null,null,"x",null,null,null,"x",null,null,null,null,null,null,null,null,null,null,null,null,null,null,null,null,null,null,null,null,null,null,null,null,null,null,null,"/3"]
["11/4","L",null,null,"Kettő","x",null,"x",null,"L",null,null,null,null,null,null,null,null,null,null,null,null,null,null,null,null,null,null,null,null,null,null,null,null,null,null,"x",null,null,null,null,null,null,null,null,null,null,null,null,null,null,null,null,null,null,null,null,null,null,null,null,null,null,null,null,null,null,null,null,null,null,null,null,null,null,null,null,"/4"]
["12/3","V","G","\"V\" lecsukva forgatás",null,null,null,null,"x","V","kb. S-3-4",null,null,"x","x",null,null,null,null,null,"x",null,null,null,null,null,null,null,null,null,null,null,null,"x",null,null,null,null,null,null,null,null,null,null,null,null,null,null,null,null,null,null,null,null,null,null,null,null,null,null,null,null,null,null,null,null,null,null,"x","x",null,null,null,null,"x","x",null,"/3"]
["12/4","V",null,null,"Világ","x",null,null,"x","V",null,"V",null,null,null,null,"x",null,null,null,null,null,null,null,null,null,null,null,null,null,null,null,null,"x",null,null,"x",null,null,null,null,null,"x",null,null,"x",null,null,null,null,null,null,null,null,null,null,null,null,null,null,null,null,null,null,null,null,"x","x","x","x",null,null,"x","x","x","x",null,"/4"]
["13/3","O-2-3-k","3/","Áll megtámasztás",null,null,null,"x",null,"O-2-3-k",null,null,null,null,null,null,null,null,null,null,null,null,null,null,null,null,null,null,null,null,null,null,null,null,null,null,"x",null,null,null,null,null,null,null,null,null,null,null,null,null,null,null,"x",null,null,null,null,null,null,null,null,null,null,null,null,null,null,null,null,null,null,null,null,null,null,null,null,"/3"]
["13/4","O-2-3-k",null,null,"Mókus","x",null,null,"x","O-2-3-k","3/","O-2-3-k","3/","x",null,null,null,null,null,null,null,null,null,null,null,null,null,null,null,null,null,null,null,null,null,null,"x",null,null,null,null,null,null,null,null,"x",null,"x",null,null,null,null,null,null,null,null,null,null,null,null,null,null,null,null,null,null,null,null,null,null,"x",null,null,null,null,null,"x","/4"]
["14/3","3/",3,"Fülhöz érintés",null,null,null,null,"x","3/",null,"3/",null,null,null,null,null,null,null,null,null,null,null,null,null,null,null,null,null,null,null,null,null,null,null,null,"x",null,null,null,null,null,null,null,null,"x",null,null,null,null,null,null,null,null,"x",null,null,null,null,null,null,null,null,null,null,null,null,null,null,null,null,null,null,null,null,null,null,"/3"]
["14/4","3/",null,null,"Csillag","x",null,null,"x","O-2-3-k","3/","O-2-3-k","3/","x","x",null,"x","x",null,null,null,null,null,null,null,null,null,null,null,null,null,null,null,null,null,null,"x","x",null,null,null,null,null,null,"x","x",null,null,null,null,null,null,null,null,null,null,null,null,null,null,null,null,null,null,null,"x","x","x","x","x","x","x","x","x","x","x","x","/4"]
["15/3",3,5,"Orrnál 2.3. ujj görbítés",null,null,null,"x",null,3,"3-2)-3)",null,null,"x","x",null,null,null,null,null,null,null,null,null,null,null,null,null,null,null,null,null,null,null,null,null,"x",null,null,null,null,null,null,null,null,null,null,null,null,null,"x",null,null,null,null,null,null,null,null,null,null,null,null,null,null,null,null,null,null,null,null,null,null,null,null,null,null,"/3"]
["15/4",3,null,null,"Pihen",null,null,null,"x",3,null,3,null,null,null,null,"x",null,null,null,null,null,null,null,null,null,null,null,null,null,null,null,null,"x",null,null,null,null,null,null,null,null,"x",null,null,null,null,null,null,null,null,null,null,null,null,null,"x",null,null,null,null,null,null,null,null,null,"x","x","x","x",null,null,"x","x","x","x",null,"/4"]
["16/3","O","5)","Bokához leeresztés",null,null,null,null,"x","O",null,"O",null,null,null,null,null,null,null,null,null,null,null,null,null,null,null,null,null,null,"x",null,null,null,null,null,null,null,null,"x",null,null,null,null,null,null,null,null,null,null,null,null,null,null,null,null,null,null,null,null,null,null,null,"x",null,null,null,null,null,null,null,null,null,null,null,null,null,"/3"]
["16/4","O",null,null,"Távcső","x",null,null,"x","O",null,"O",null,null,null,"x","x",null,null,null,"x",null,null,null,null,null,null,null,null,null,null,null,null,null,null,null,"x",null,null,null,null,null,null,null,null,"x",null,null,null,"x",null,null,null,null,null,null,null,null,null,null,null,null,null,null,null,"x","x",null,null,null,null,"x","x",null,null,null,null,"/4"]
["17/3","O-k","5/","Szemben ismétlés",null,null,null,null,"x","O-k","5/","O-k","5/","x","x",null,null,null,"x",null,null,null,null,null,null,null,null,null,null,null,null,null,null,"x",null,null,null,null,null,null,null,null,"x",null,null,null,null,null,null,null,null,null,null,null,null,null,null,null,null,null,null,null,null,null,null,null,"x","x","x","x","x",null,"x","x","x","x","x","/3"]
["17/4","O-k",null,null,"Nap","x","x","x",null,"O-k","5/",null,null,"x",null,"x",null,"x","x",null,null,null,null,null,null,null,null,null,null,null,null,"x",null,null,"x",null,null,"x",null,null,null,null,null,null,null,null,null,null,null,null,null,null,null,null,null,null,null,null,null,null,null,null,null,null,null,"x","x","x","x","x","x",null,null,null,null,null,null,"/4"]
["18/3","B)","B/","Lábszár, lábfej érintés",null,null,null,null,"x","B)",null,"B)",null,null,null,null,null,null,null,null,null,null,null,null,null,null,null,null,null,null,"x",null,null,null,null,null,null,null,null,"x",null,null,null,null,null,null,null,null,null,null,null,null,null,null,null,null,null,null,null,null,null,null,"x",null,"x",null,null,null,null,null,null,null,null,null,null,null,null,"/3"]
["18/4","B)",null,null,"Domb","x",null,"x",null,"B)",null,null,null,null,null,"x","x",null,null,null,null,null,null,null,null,null,"x",null,null,null,null,null,"x",null,"x",null,"x",null,null,null,null,null,null,null,null,null,null,null,null,null,null,null,null,null,null,null,null,null,null,null,null,null,null,null,null,"x","x","x","x","x",null,null,null,null,null,null,null,"/4"]
["19/3","C","O","Poharat 6 polcra",null,"x","x","x",null,"C",null,null,null,null,null,"x",null,null,"x",null,null,null,null,null,null,null,null,null,null,null,null,null,null,"x",null,null,"x",null,null,null,null,null,null,null,null,null,null,null,null,null,null,null,null,null,null,null,null,null,null,null,null,null,null,null,null,"x","x","x","x",null,null,null,null,null,null,null,null,"/3"]
["19/4","C",null,null,"Zsiráf","x",null,"x",null,"C",null,null,null,null,null,"x",null,null,"x",null,null,null,null,null,null,null,null,null,null,null,null,null,null,null,null,null,"x",null,null,null,null,null,null,null,null,null,null,null,null,null,null,null,null,null,null,"x",null,null,null,null,null,null,null,null,null,"x","x","x","x","x",null,null,null,null,null,null,null,"/4"]
["20/3","F","F-c","Tündér kézfogás",null,"x","x","x",null,"F",null,null,null,null,null,null,null,null,null,null,null,null,null,null,null,null,null,null,null,null,null,null,null,null,null,null,null,null,null,null,null,null,null,null,null,null,null,null,null,null,null,null,null,null,null,null,null,null,null,null,null,null,null,null,null,null,null,null,null,null,null,null,null,null,null,null,null,"/3"]
["20/4","F",null,null,"Buborék","x","x","x",null,"F",null,null,null,null,null,null,null,null,"x",null,null,null,null,null,null,null,null,null,null,null,null,null,null,null,null,null,"x",null,null,null,null,null,null,null,null,null,null,null,null,null,null,"x",null,null,null,null,null,null,null,null,null,null,null,null,null,null,null,null,null,null,null,null,null,null,null,null,null,"/4"]
["21/3","F-c",5,"\"F-c\" egymásba fűzése",null,null,null,null,"x","F-c",null,"F-c",null,null,null,"x","x","x","x","x",null,null,null,null,"x",null,null,null,null,null,null,null,null,"x",null,null,null,null,null,null,null,null,"x",null,null,null,null,null,null,null,null,null,null,null,null,null,null,null,null,null,null,null,null,null,null,null,"x","x","x",null,null,null,"x","x","x",null,null,"/3"]
["21/4","F-c",null,null,"Üveggolyó","x",null,"x",null,"F-c",null,null,null,null,null,"x",null,null,"x",null,null,null,null,null,null,null,null,null,null,null,null,null,null,"x",null,null,null,"x",null,null,null,null,null,null,null,null,null,null,null,null,null,null,null,null,null,null,null,null,null,null,null,null,null,null,null,"x","x","x","x","x",null,null,null,null,null,null,null,"/4"]
["22/3","5)","S","Mérges",null,null,"x","x",null,"5)",null,null,null,null,null,null,null,null,null,null,null,null,null,null,null,"x",null,null,null,null,null,null,null,null,null,null,"x",null,null,null,null,null,null,null,null,null,null,null,null,"x",null,null,null,null,null,null,null,null,null,null,null,null,null,null,null,"x","x","x","x",null,null,null,null,null,null,null,null,"/3"]
["22/4","5)",null,null,"Medve","x","x",null,"x","5)",null,"5)",null,"x","x",null,null,"x","x",null,"x",null,"x",null,null,null,null,null,null,null,null,null,null,"x",null,null,null,null,null,null,null,null,"x",null,null,null,null,null,null,null,null,null,null,null,null,null,"x",null,null,null,null,null,null,null,null,null,null,"x","x",null,null,null,null,"x","x",null,null,"/4"]
["23/3","O/","S-1","Ujjak kinyitása",null,null,null,"x",null,"O/","5/","O/","5/","x",null,null,null,null,null,null,null,null,null,null,null,null,null,null,null,null,null,null,null,"x",null,null,null,null,null,null,null,null,"x",null,null,null,null,null,null,null,null,"x",null,null,null,null,null,null,null,null,null,null,null,null,null,null,null,null,null,null,null,null,null,null,null,null,null,"/3"]
["23/4","O/",null,null,"Fáradt","x","x",null,"x","5/","O/","5/","O/",null,"x",null,"x",null,null,null,null,null,null,null,null,null,null,null,null,null,null,null,null,"x",null,null,null,null,null,null,null,null,"x",null,null,null,null,null,null,null,null,null,null,null,null,"x",null,null,null,null,null,null,null,null,null,"x","x","x","x","x",null,"x","x","x","x","x",null,"/4"]
["24/3","C/","O/","Orca simítása",null,null,null,"x",null,"C/","O/",null,null,null,"x",null,"x",null,"x",null,null,null,null,null,null,null,null,null,null,null,null,null,null,null,null,null,"x",null,null,null,null,null,null,null,null,null,null,null,null,null,null,null,"x","x",null,null,null,null,null,null,null,null,null,null,null,null,null,"x","x","x",null,null,null,null,null,null,null,"/3"]
["24/4","C/",null,null,"Kacsa","x","x","x",null,"C/","O/",null,null,"x","x",null,null,null,null,null,null,null,null,null,null,null,null,null,null,null,null,null,null,null,null,null,"x",null,null,null,null,null,null,null,null,null,null,null,null,null,null,"x",null,null,null,null,null,null,null,null,null,null,null,null,null,null,null,null,null,null,null,null,null,null,null,null,null,"/4"]
["25/3","B/","B","Szél, Szellő",null,null,"x",null,"x","B","B/","B/","B","x","x",null,null,"x","x",null,"x",null,null,null,null,null,null,null,null,null,null,null,"x","x","x",null,null,null,null,null,null,"x","x","x",null,null,null,null,null,null,null,null,null,null,null,null,null,null,null,null,null,null,null,null,null,"x","x","x","x","x",null,"x","x","x","x","x",null,"/3"]
["25/4","B/",null,null,"Bocsánat",null,null,null,"x","B/",null,"B/",null,null,null,null,null,null,null,null,"x",null,null,null,null,null,null,null,null,null,null,null,null,"x",null,null,null,null,null,null,null,null,"x",null,null,null,null,null,null,null,null,null,null,null,null,null,null,null,null,null,null,null,null,null,null,null,null,"x","x",null,null,null,null,null,null,null,null,"/4"]
["26/3","5/","O/","Ujjak összefűzése",null,null,null,null,"x","5/",null,"5/",null,null,null,null,null,null,null,null,null,null,"x",null,null,null,null,null,null,null,null,null,null,"x",null,null,null,null,null,null,null,null,"x",null,null,null,null,null,null,null,null,null,null,null,null,null,null,null,null,null,null,null,null,null,null,null,null,"x","x",null,null,null,null,"x","x",null,null,"/3"]
["26/4","5/",null,null,"Fény jelv.","x",null,"x",null,"5/","F",null,null,null,"x","x",null,null,"x",null,null,null,null,null,null,null,null,null,null,null,null,null,null,"x",null,null,"x","x",null,null,null,null,null,null,null,null,null,null,null,null,null,null,null,null,null,null,"x",null,null,null,null,null,null,null,null,"x","x","x","x","x",null,null,null,null,null,null,null,"/4"]
["27/3","B",5,"Tenyerek fordítása",null,null,null,null,"x","B",null,"B",null,null,null,"x","x",null,null,null,null,null,null,null,null,null,null,null,null,null,null,null,null,"x",null,null,null,null,null,null,null,null,"x",null,null,null,null,null,null,null,null,null,null,null,null,null,null,null,null,null,null,null,null,null,null,null,null,null,"x",null,null,null,null,null,"x",null,null,"/3"]
["27/4","B",null,null,"Üdvözlés",null,null,null,"x","B",null,"B",null,null,null,"x",null,null,null,null,null,null,null,null,null,null,null,null,null,null,null,null,null,null,null,null,null,"x",null,null,null,null,null,null,"x",null,null,null,null,null,null,null,null,null,null,null,null,null,null,null,null,null,null,null,null,"x","x","x","x",null,null,"x","x","x","x",null,null,"/4"]
["28/3","B+1","B","Csípő érintése",null,null,null,null,"x","B+1",null,"B+1",null,null,null,null,null,null,null,null,null,null,null,null,null,null,null,null,null,null,"x",null,null,null,null,null,null,null,null,"x",null,null,null,null,null,null,null,null,null,null,null,null,null,null,null,null,null,null,null,"x",null,null,null,null,null,null,null,null,null,null,null,null,null,null,null,null,null,"/3"]
["28/4","B+1",null,null,"Hal","x","x","x",null,"B+1",null,null,null,null,null,null,null,null,"x",null,null,null,null,null,null,null,"x",null,null,null,null,null,null,null,"x",null,null,null,null,null,null,null,null,null,null,null,null,null,null,null,null,null,null,null,null,null,null,null,null,null,null,null,null,null,null,"x","x","x","x","x",null,null,null,null,null,null,null,"/4"]
["29/3",4,5,"Söprögetés",null,"x","x","x",null,4,null,null,null,null,null,null,null,null,"x",null,null,null,null,null,null,null,null,null,null,null,null,null,null,"x",null,null,null,null,null,null,null,null,null,null,null,null,null,null,null,null,null,null,null,null,null,null,null,"x",null,null,null,null,null,null,null,null,null,null,null,"x",null,null,null,null,null,null,null,"/3"]
["29/4",4,null,null,"Fű","x","x",null,"x",4,null,4,null,null,null,null,null,null,"x",null,null,null,null,null,null,null,null,null,"x",null,null,null,null,"x",null,null,null,null,null,null,null,null,"x",null,null,null,null,null,null,null,null,null,null,null,null,null,null,null,null,null,null,null,null,null,null,"x","x","x","x","x",null,"x","x","x","x","x",null,"/4"]
["30/3",5,"5/","Térrészek bejárása",null,null,null,"x",null,5,null,null,null,null,null,"x",null,null,null,null,null,null,null,null,null,null,null,null,null,"x","x","x","x","x","x","x","x","x",null,null,null,null,null,null,null,null,null,null,null,null,null,null,null,null,null,null,null,null,null,null,null,"x",null,null,null,"x","x","x","x","x",null,null,null,null,null,null,null,"/3"]
["30/4",5,null,null,"Nem",null,"x","x",null,5,null,null,null,null,null,null,null,"x","x",null,"x",null,null,null,null,null,null,null,null,null,null,null,null,null,null,null,null,"x",null,null,null,null,null,null,null,null,null,null,null,null,null,null,null,null,null,null,null,null,null,null,null,null,null,null,null,null,null,null,"x","x",null,null,null,null,null,null,null,"/4"]
["Össz.","N/A","N/A","N/A","N/A",{"$f":"COUNTIF(F3:F63,\"x\")","v":28},{"$f":"COUNTIF(G3:G63,\"x\")","v":22},29,31,"N/A","N/A","N/A","N/A",13,12,19,17,13,23,6,10,1,2,1,2,2,4,1,2,1,5,2,6,32,9,2,27,12,0,4,0,1,19,1,5,12,0,1,1,4,1,5,2,1,1,2,5,1,0,1,1,1,1,1,1,23,29,34,40,27,{"$f":"COUNTIF(BS3:BS63,\"x\")","v":4},9,14,18,21,11,3,"z."]
["3fÖssz.","N/A","N/A","N/A","N/A",{"$f":"COUNTIFS($BZ:$BZ,\"/3\",F:F,\"x\")","v":6},{"$f":"COUNTIFS($BZ:$BZ,\"/3\",G:G,\"x\")","v":9},14,16,"N/A","N/A","N/A","N/A",6,5,8,7,5,11,4,5,0,1,1,1,2,1,1,0,1,5,1,4,18,5,1,13,4,0,4,0,1,10,1,2,6,0,0,0,3,1,1,2,1,1,0,2,1,0,1,1,1,1,1,1,11,13,15,18,10,{"$f":"COUNTIFS($BZ:$BZ,\"/3\",BS:BS,\"x\")","v":1},4,6,8,11,5,1,"z."]
["4fÖssz.","N/A","N/A","N/A","N/A",{"$f":"COUNTIFS($BZ:$BZ,\"/4\",F:F,\"x\")","v":22},{"$f":"COUNTIFS($BZ:$BZ,\"/4\",G:G,\"x\")","v":13},15,15,"N/A","N/A","N/A","N/A",7,7,11,10,8,12,2,5,1,1,0,1,0,3,0,2,0,0,1,2,14,4,1,14,8,0,0,0,0,9,0,3,6,0,1,1,1,0,4,0,0,0,2,3,0,0,0,0,0,0,0,0,12,16,19,22,17,{"$f":"COUNTIFS($BZ:$BZ,\"/4\",BS:BS,\"x\")","v":3},5,8,10,10,6,2,"z."]
[]
[]
[null,null,null,null,null,null,null,null,null,null,null,null,null,null,null,null,null,null,null,null,null,null,null,null,null,null,null,null,null,null,null,null,null,null,null,null,null,null,null,null,null,null,null,null,null,null,null,null,null,null,null,null,null,null,null,null,null,null,null,null,null,null,null,null,null,null,null,null,null,null,null,null,null,null,"Összesen:",{"$f":"COUNTIF(F4:BY63,\"x\")","v":639},"db"]

{"sheet":"Test Line","index":1,"n_rows":33,"n_cols":20,"rows_kept":33,"cut":false,"hidden":false,"merged":[[1,14,1,16],[1,9,1,11],[1,3,1,6],[2,5,2,6]]}
[]
[null,null,"Write an x to all the rubrics below","Editing and macros must be enabled after opening the file!",null,null,null,null,"Az alábbi összes rubrika X-elése","The results of tasks 3 and 4 must be uploaded at the same time! Technical information can be read on the last sheet!",null,null,"Az alábbi összes rubrika X-elése","Az alábbi összes rubrika X-elése","After pressing the \"Evaluation\" button, the result can be seen on the \"Complex Hand Signal DevelopPlan\" sheet.",null,null,"Az alábbi összes rubrika X-elése","Az alábbi összes rubrika X-elése"]
["Task 1","Hand shape","Performed without positive or negative feeling","Positive or negative feeling","Task 2","Hand shape gymnastics",null,"Previous task(s) not completed","Completed","Not completed","Task 3","Movement","Previous task(s) not completed","Completed","Not completed","Task 4","Sign-Word-Treasure","Previous task(s) not completed","Completed","Not completed"]
[1,"S-1",null,null,1,"S-1","B+1",null,null,null,1,"Freedom sign version",null,null,null,1,"Hedgehog"]
[2,"S",null,null,2,"S","A",null,null,null,2,"Lowering to the thigh",null,null,null,2,"Bicycle"]
[3,"A",null,null,3,"A","A+1",null,null,null,3,"Window cleaning",null,null,null,3,"Yes"]
[4,"A+1",null,null,4,"A+1","B+1",null,null,null,4,"Pushing away from the body",null,null,null,4,"Cow"]
[5,"A-t",null,null,5,"A","A-t",null,null,null,5,"Playing cymbalo",null,null,null,5,"Cook"]
[6,"O-1-2",null,null,6,"O-1-2","F",null,null,null,6,"Peeking through a hole",null,null,null,6,"Leaf"]
[7,"C-1-2",null,null,7,"O-1-2","C-1-2",null,null,null,7,"Stretching to the side",null,null,null,7,"Rainbow"]
[8,"O-1-2/",null,null,8,"O-1-2/","C-1-2/",null,null,null,8,"Waves and zig-zags",null,null,null,8,"Salt"]
[9,"C-1-2/",null,null,9,"C-1-2/","C/",null,null,null,9,"Infinity",null,null,null,9,"Hen"]
[10,"G",null,null,10,"S","G",null,null,null,10,"Walking",null,null,null,10,"Silent signal version"]
[11,"L",null,null,11,"L","3",null,null,null,11,"Looking out",null,null,null,11,"Two"]
[12,"V",null,null,12,"G","V",null,null,null,12,"“V” closed rotation",null,null,null,12,"World"]
[13,"O-2-3-k",null,null,13,"O-2-3-k","3/",null,null,null,13,"Chin support",null,null,null,13,"Squirrel"]
[14,"3/",null,null,14,"3/","3",null,null,null,14,"Touch to the ears",null,null,null,14,"Star"]
[15,"3",null,null,15,"3","5",null,null,null,15,"Bending of the 2nd and 3rd fingers at the nose",null,null,null,15,"At rest"]
[16,"O",null,null,16,"O","5)",null,null,null,16,"Lowering to ankles",null,null,null,16,"Binoculars"]
[17,"O-k",null,null,17,"O-k","5/",null,null,null,17,"Opposite repetitions",null,null,null,17,"Sun"]
[18,"B)",null,null,18,"B)","B/",null,null,null,18,"Leg, foot touch",null,null,null,18,"Hill"]
[19,"C",null,null,19,"O","C",null,null,null,19,"Cups for 6 shelves",null,null,null,19,"Giraffe"]
[20,"F",null,null,20,"F","F-c",null,null,null,20,"Fairy handshake",null,null,null,20,"Bubbles"]
[21,"F-c",null,null,21,"F-c","5",null,null,null,21,"Interlacing \"F-c\"",null,null,null,21,"Marble"]
[22,"5)",null,null,22,"S","5)",null,null,null,22,"Angry",null,null,null,22,"Bear"]
[23,"O/",null,null,23,"S-1","O/",null,null,null,23,"Opening fingers",null,null,null,23,"Tired"]
[24,"C/",null,null,24,"O/","C/",null,null,null,24,"Cheek smoothing",null,null,null,24,"Duck"]
[25,"B/",null,null,25,"B/","B",null,null,null,25,"Wind, breeze",null,null,null,25,"Apology"]
[26,"5/",null,null,26,"O/","5/",null,null,null,26,"Joining fingers",null,null,null,26,"Light sign version"]
[27,"B",null,null,27,"B","5",null,null,null,27,"Turning the palms",null,null,null,27,"Greeting"]
[28,"B+1",null,null,28,"B","B+1",null,null,null,28,"Touching the hip",null,null,null,28,"Fish"]
[29,"4",null,null,29,"4","5",null,null,null,29,"Sweeping",null,null,null,29,"Grass"]
[30,"5",null,null,30,"5/","5",null,null,null,30,"Walking through parts of the space",null,null,null,30,"No"]

{"sheet":"Complex Hand Signal DevelopPlan","index":2,"n_rows":36,"n_cols":17,"rows_kept":36,"cut":false,"hidden":false,"merged":[[15,14,15,19],[17,14,19,19],[21,16,21,17],[23,16,23,17],[0,1,0,12],[1,1,1,12],[3,9,3,10],[3,11,3,12],[2,3,2,12],[2,1,4,1],[2,2,4,2],[3,3,3,4],[3,7,3,8],[3,5,3,6],[35,3,35,4],[35,5,35,6],[35,7,35,8],[35,9,35,10],[35,11,35,12]]}
[null,"Information on the implementation of the \"Complex Hand Signal Development Plan\" can be found in row 36 highlighted in orange."]
[null,"All rights reserved! Puskás Krisztina Katalin"]
[null,"Evaluation of task 1. Hand shapes worth practicing","Evaluation of task 2. Hand shapes gymnastics worth practiciong","Evaluation of task 3. and 4."]
[null,null,null,"Body parts",null,"Parts of space",null,"Movement",null,"Hands",null,"Association"]
[null,null,null,"Name","%","Serial number","%","Type","%","Number","%","Character","%"]
[]
[]
[]
[]
[]
[]
[]
[]
[]
[]
[]
[]
[null,null,null,null,null,null,null,null,null,null,null,null,null,null,"I wish you good practice and many joyful experiences!"]
[]
[]
[]
[null,null,null,null,null,null,null,null,null,null,null,null,null,null,null,null,"Puskás Kriszti"]
[]
[null,null,null,null,null,null,null,null,null,null,null,null,null,null,null,null,"www.tevagyajel.hu"]
[]
[]
[]
[]
[]
[]
[]
[]
[]
[]
[]
[null,"After completing the entire test, the affected hand shapes  (e.g.: S, A+1; A-t, G1; B+1, 5...etc.) also worth practicing through \"Sign-Word-Treasure\". This can be found in the www.tevagyajel.hu web application \"Education\" / \"Cultural Treasure\" menu item.","Additional personalized hand form exercises (e.g.: S, A+1; A-t, G1; B+1, 5...etc.) can be prepared in the www.tevagyajel.hu web application \"Education\" / \"Handforms\" (viewable with subscription) using the \"Hand shape filter\" menu item.\n","Regarding the body parts to be developed, it is worth starting filters in the \"Education\" / \"Sign-Word-Literature\" / \"Detailed search\" / \"Body parts\" menu of the www.tevagyajel.hu web application. Select only one body part at a time! He gave \"Sign-Word-Treasures\" in songs, rhymes...etc. embedded, it is worth practicing in the \"Education\" / \"Cultural Treasury\" menu item.",null,"Regarding the areas to be developed, it is worth starting filters in the \"Education\" / \"Sign-Word-Library\" / \"Detailed search\" / \"Areas\" menu of the www.tevagyajel.hu web application. Set only one part of the space at a time! E.g.: Active space 8 is to be developed, then it is worth setting \"8\" only for \"Active hand affected first space\".",null,"Regarding the types of movements to be developed, it is worth starting filters in the \"Education\" / \"Sign-Word-Literature\" / \"Detailed search\" / \"Movements\" menu of the www.tevagyajel.hu web application. Set only one type of movement at a time!",null,"Regarding the number of hands, it is worth starting filters in the \"Education\" / \"Sign-Word-Library\" / \"Detailed search\" / \"Number of hands\" menu of the www.tevagyajel.hu web application. Since you are expected to receive many signals as a result, you can enter other filter conditions in addition to \"Number of hands\"!",null,"Regarding the area of ​​association to be developed, it is worth starting filters in the \"Education\" / \"Sign-Word Library\" / \"Detailed search\" / \"Type of association\" menu of the www.tevagyajel.hu web application. Since you are expected to receive a lot of signals as a result, you can enter other filtering conditions in addition to \"Type of association\"!"]

{"sheet":"Technical Information","index":3,"n_rows":9,"n_cols":3,"rows_kept":9,"cut":false,"hidden":false,"merged":[[1,1,1,6]]}
[]
[null,"You probably won't be able to use the table on a mobile phone. If you experience a technical error on a desktop computer, please send an email to the email address info@tevagyajel.hu. Please help us by providing the following:\n- What device do you use the Measuring Sheet on (laptop, desktop, mobile)\n- By specifying the version of the Windows and Excel application: this information can be found at the bottom of the Test Line worksheet\n- with a precise description of the phenomenon / case\n- if there is an error message, by specifying it exactly\n- by attaching a screenshot"]
[]
[null,"The operation of the measurement sheet has been successfully tested in the following environments:"]
[]
[null,"Windows version","Excel version"]
[null,"Microsoft Windows 10 Enterprise 10.0.19044","Excel 2016 (16)"]
[null,"Microsoft Windows 10 Pro 10.0.19044","Excel 2010 (14)"]
[null,"Microsoft Windows 8.1 Enterprise 6.3.9600","Excel 2010 (14)"]

{"sheet":"Settings","index":4,"n_rows":2,"n_cols":1,"rows_kept":2,"cut":false,"hidden":true,"merged":[]}
["Pozitív"]
["Negatív"]

{"sheet":"Grafikus info","index":5,"n_rows":32,"n_cols":8,"rows_kept":32,"cut":false,"hidden":true,"merged":[[1,2,1,3],[1,4,1,5],[1,6,1,7]]}
[]
["Sorszám","1. feladat sorszám","2. feladat sorszám",null,"3. feladat sorszám",null,"4. feladat sorszám"]
["1 - S-1",1,1,28,1,null,1,29]
["2 - S",2,2,3,2,null,2]
["3 - A",3,3,4,3,null,3]
["4 - A+1",4,4,28,4,null,4]
["5 - A-t",5,3,5,5,null,5]
["6 - O-1-2",6,6,20,6,null,6,7]
["7 - C-1-2",7,6,7,7,null,7]
["8 - O-1-2/",8,8,9,8,null,8]
["9 - C-1-2/",9,9,24,9,null,9,8]
["10 - G",10,2,10,10,null,10]
["11 - L",11,11,15,11,null,11]
["12 - V",12,10,12,12,null,12]
["13 - O-2-3-k",13,13,14,13,null,13,14]
["14 - 3/",14,14,15,14,null,13,14]
["15 - 3",15,15,30,15,null,15]
["16 - O",16,16,22,16,null,16]
["17 - O-k",17,17,26,17,26,17,26]
["18 - B)",18,18,25,18,null,18]
["19 - C",19,16,19,19,null,19]
["20 - F",20,20,21,20,null,20]
["21 - F-c",21,21,30,21,null,21]
["22 - 5)",22,2,22,22,null,22]
["23 - O/",23,1,23,23,26,26,23]
["24 - C/",24,23,24,24,23,24,23]
["25 - B/",25,25,27,27,25,25]
["26 - 5/",26,23,26,26,null,26,20]
["27 - B",27,27,30,27,null,27]
["28 - B+1",28,27,28,28,null,28]
["29 - 4",29,29,30,29,null,29]
["30 - 5",30,26,30,30,null,30]

{"sheet":"Temp","index":6,"n_rows":48,"n_cols":78,"rows_kept":48,"cut":false,"hidden":true,"merged":[[0,5,0,6],[0,7,0,8],[0,71,0,76],[0,13,0,28],[0,29,0,37],[0,38,0,46],[0,47,0,64],[0,65,0,70]]}
["Sequence number ","Task 1","Task 2","Task 3","Task 4","Nature of association",null,"Number of hands",null,"Active hand form 1","Active hand form 2","Passive hand form 1","Passive hand form 2","Movements",null,null,null,null,null,null,null,null,null,null,null,null,null,null,null,"Areas touched by active hands",null,null,null,null,null,null,null,null,"Areas affected by passive hands",null,null,null,null,null,null,null,null,"Body parts",null,null,null,null,null,null,null,null,null,null,null,null,null,null,null,null,null,"Active",null,null,null,null,null,"Passive"]
[null,"Hand shape","hand shape gymnastics","Movement","Sign-Word-Treasure\n","Visual","Motorized ","One-handed","Two-handed",null,null,null,null,"Opening ","Closing","Up","Down","Towards the body","Away from the body ","Up and down","Back and forth","Cross-Move","X-Move","Infinity ","Clockwise direction\n","Counter-clockwise direction\n","Wave","Zigzag","Fine movement","Active space 1\n","Active space 2","Active space 3","Active space 4","Active space 5","Active space 6","Active space 7","Active space 8","Active space 9","Passive space\n 1","Passive space 2","Passive space\n 3","Passive space\n 4","Passive space\n 5","Passive space\n 6","Passive space\n 7","Passive space\n 8","Passive space\n 9","Head","Forehead/Temple","Eye/Eyebrows","Nose","Mouth","Chin","Cheek","Ear","Neck","Chest","\nAbdomen","Back","Hip","Thigh","Knee","Leg","Ankle","Foot","Active shoulder","Active upper arm","Active elbow","Active forearm","Active wrist","Active nail","Passive shoulder","Passive upper arm","Passive elbow","Passive forearm","Passive wrist","Passive nail"]
[{"$f":"Adatok!A65","v":"3fÖssz."},{"$f":"Adatok!B65","v":"N/A"},{"$f":"Adatok!C65","v":"N/A"},{"$f":"Adatok!D65","v":"N/A"},{"$f":"Adatok!E65","v":"N/A"},{"$f":"Adatok!F65","v":6},{"$f":"Adatok!G65","v":9},{"$f":"Adatok!H65","v":14},{"$f":"Adatok!I65","v":16},{"$f":"Adatok!J65","v":"N/A"},{"$f":"Adatok!K65","v":"N/A"},{"$f":"Adatok!L65","v":"N/A"},{"$f":"Adatok!M65","v":"N/A"},{"$f":"Adatok!N65","v":6},{"$f":"Adatok!O65","v":5},{"$f":"Adatok!P65","v":8},{"$f":"Adatok!Q65","v":7},{"$f":"Adatok!R65","v":5},{"$f":"Adatok!S65","v":11},{"$f":"Adatok!T65","v":4},{"$f":"Adatok!U65","v":5},{"$f":"Adatok!V65","v":0},{"$f":"Adatok!W65","v":1},{"$f":"Adatok!X65","v":1},{"$f":"Adatok!Y65","v":1},{"$f":"Adatok!Z65","v":2},{"$f":"Adatok!AA65","v":1},{"$f":"Adatok!AB65","v":1},{"$f":"Adatok!AC65","v":0},{"$f":"Adatok!AD65","v":1},{"$f":"Adatok!AE65","v":5},{"$f":"Adatok!AF65","v":1},{"$f":"Adatok!AG65","v":4},{"$f":"Adatok!AH65","v":18},{"$f":"Adatok!AI65","v":5},{"$f":"Adatok!AJ65","v":1},{"$f":"Adatok!AK65","v":13},{"$f":"Adatok!AL65","v":4},{"$f":"Adatok!AM65","v":0},{"$f":"Adatok!AN65","v":4},{"$f":"Adatok!AO65","v":0},{"$f":"Adatok!AP65","v":1},{"$f":"Adatok!AQ65","v":10},{"$f":"Adatok!AR65","v":1},{"$f":"Adatok!AS65","v":2},{"$f":"Adatok!AT65","v":6},{"$f":"Adatok!AU65","v":0},{"$f":"Adatok!AV65","v":0},{"$f":"Adatok!AW65","v":0},{"$f":"Adatok!AX65","v":3},{"$f":"Adatok!AY65","v":1},{"$f":"Adatok!AZ65","v":1},{"$f":"Adatok!BA65","v":2},{"$f":"Adatok!BB65","v":1},{"$f":"Adatok!BC65","v":1},{"$f":"Adatok!BD65","v":0},{"$f":"Adatok!BE65","v":2},{"$f":"Adatok!BF65","v":1},{"$f":"Adatok!BG65","v":0},{"$f":"Adatok!BH65","v":1},{"$f":"Adatok!BI65","v":1},{"$f":"Adatok!BJ65","v":1},{"$f":"Adatok!BK65","v":1},{"$f":"Adatok!BL65","v":1},{"$f":"Adatok!BM65","v":1},{"$f":"Adatok!BN65","v":11},{"$f":"Adatok!BO65","v":13},{"$f":"Adatok!BP65","v":15},{"$f":"Adatok!BQ65","v":18},{"$f":"Adatok!BR65","v":10},{"$f":"Adatok!BS65","v":1},{"$f":"Adatok!BT65","v":4},{"$f":"Adatok!BU65","v":6},{"$f":"Adatok!BV65","v":8},{"$f":"Adatok!BW65","v":11},{"$f":"Adatok!BX65","v":5},{"$f":"Adatok!BY65","v":1},"/4"]
["3. Feladat Korábban Nem OK",{"$f":"'Temp Korabban Nem OK 3'!B3","v":0},{"$f":"'Temp Korabban Nem OK 3'!C3","v":0},{"$f":"'Temp Korabban Nem OK 3'!D3","v":0},{"$f":"'Temp Korabban Nem OK 3'!E3","v":0},{"$f":"'Temp Korabban Nem OK 3'!F3","v":1},{"$f":"'Temp Korabban Nem OK 3'!G3","v":3},{"$f":"'Temp Korabban Nem OK 3'!H3","v":2},{"$f":"'Temp Korabban Nem OK 3'!I3","v":3},{"$f":"'Temp Korabban Nem OK 3'!J3","v":0},{"$f":"'Temp Korabban Nem OK 3'!K3","v":0},{"$f":"'Temp Korabban Nem OK 3'!L3","v":0},{"$f":"'Temp Korabban Nem OK 3'!M3","v":0},{"$f":"'Temp Korabban Nem OK 3'!N3","v":1},{"$f":"'Temp Korabban Nem OK 3'!O3","v":1},{"$f":"'Temp Korabban Nem OK 3'!P3","v":1},{"$f":"'Temp Korabban Nem OK 3'!Q3","v":2},{"$f":"'Temp Korabban Nem OK 3'!R3","v":1},{"$f":"'Temp Korabban Nem OK 3'!S3","v":1},{"$f":"'Temp Korabban Nem OK 3'!T3","v":1},{"$f":"'Temp Korabban Nem OK 3'!U3","v":1},{"$f":"'Temp Korabban Nem OK 3'!V3","v":0},{"$f":"'Temp Korabban Nem OK 3'!W3","v":0},{"$f":"'Temp Korabban Nem OK 3'!X3","v":0},{"$f":"'Temp Korabban Nem OK 3'!Y3","v":0},{"$f":"'Temp Korabban Nem OK 3'!Z3","v":1},{"$f":"'Temp Korabban Nem OK 3'!AA3","v":0},{"$f":"'Temp Korabban Nem OK 3'!AB3","v":0},{"$f":"'Temp Korabban Nem OK 3'!AC3","v":0},{"$f":"'Temp Korabban Nem OK 3'!AD3","v":0},{"$f":"'Temp Korabban Nem OK 3'!AE3","v":1},{"$f":"'Temp Korabban Nem OK 3'!AF3","v":0},{"$f":"'Temp Korabban Nem OK 3'!AG3","v":0},{"$f":"'Temp Korabban Nem OK 3'!AH3","v":4},{"$f":"'Temp Korabban Nem OK 3'!AI3","v":1},{"$f":"'Temp Korabban Nem OK 3'!AJ3","v":0},{"$f":"'Temp Korabban Nem OK 3'!AK3","v":1},{"$f":"'Temp Korabban Nem OK 3'!AL3","v":1},{"$f":"'Temp Korabban Nem OK 3'!AM3","v":0},{"$f":"'Temp Korabban Nem OK 3'!AN3","v":1},{"$f":"'Temp Korabban Nem OK 3'!AO3","v":0},{"$f":"'Temp Korabban Nem OK 3'!AP3","v":0},{"$f":"'Temp Korabban Nem OK 3'!AQ3","v":2},{"$f":"'Temp Korabban Nem OK 3'!AR3","v":0},{"$f":"'Temp Korabban Nem OK 3'!AS3","v":0},{"$f":"'Temp Korabban Nem OK 3'!AT3","v":0},{"$f":"'Temp Korabban Nem OK 3'!AU3","v":0},{"$f":"'Temp Korabban Nem OK 3'!AV3","v":0},{"$f":"'Temp Korabban Nem OK 3'!AW3","v":0},{"$f":"'Temp Korabban Nem OK 3'!AX3","v":0},{"$f":"'Temp Korabban Nem OK 3'!AY3","v":0},{"$f":"'Temp Korabban Nem OK 3'!AZ3","v":0},{"$f":"'Temp Korabban Nem OK 3'!BA3","v":0},{"$f":"'Temp Korabban Nem OK 3'!BB3","v":0},{"$f":"'Temp Korabban Nem OK 3'!BC3","v":0},{"$f":"'Temp Korabban Nem OK 3'!BD3","v":0},{"$f":"'Temp Korabban Nem OK 3'!BE3","v":0},{"$f":"'Temp Korabban Nem OK 3'!BF3","v":0},{"$f":"'Temp Korabban Nem OK 3'!BG3","v":0},{"$f":"'Temp Korabban Nem OK 3'!BH3","v":0},{"$f":"'Temp Korabban Nem OK 3'!BI3","v":1},{"$f":"'Temp Korabban Nem OK 3'!BJ3","v":0},{"$f":"'Temp Korabban Nem OK 3'!BK3","v":0},{"$f":"'Temp Korabban Nem OK 3'!BL3","v":0},{"$f":"'Temp Korabban Nem OK 3'!BM3","v":0},{"$f":"'Temp Korabban Nem OK 3'!BN3","v":1},{"$f":"'Temp Korabban Nem OK 3'!BO3","v":1},{"$f":"'Temp Korabban Nem OK 3'!BP3","v":1},{"$f":"'Temp Korabban Nem OK 3'!BQ3","v":3},{"$f":"'Temp Korabban Nem OK 3'!BR3","v":2},{"$f":"'Temp Korabban Nem OK 3'!BS3","v":0},{"$f":"'Temp Korabban Nem OK 3'!BT3","v":0},{"$f":"'Temp Korabban Nem OK 3'!BU3","v":0},{"$f":"'Temp Korabban Nem OK 3'!BV3","v":1},{"$f":"'Temp Korabban Nem OK 3'!BW3","v":3},{"$f":"'Temp Korabban Nem OK 3'!BX3","v":2},{"$f":"'Temp Korabban Nem OK 3'!BY3","v":0}]
["3. Feladat Korábban Nem OK-val csökkentett",{"$f":"IF(ISERROR(B3-B4),0,B3-B4)","v":0},{"$f":"IF(ISERROR(C3-C4),0,C3-C4)","v":0},0,0,5,6,12,13,0,0,0,0,5,4,7,5,4,10,3,4,0,1,1,1,1,1,1,0,1,4,1,4,14,4,1,12,3,0,3,0,1,8,1,2,6,0,0,0,3,1,1,2,1,1,0,2,1,0,1,0,1,1,1,1,10,{"$f":"IF(ISERROR(BO3-BO4),0,BO3-BO4)","v":12},14,15,8,1,4,6,7,8,3,1]
["3. Feladatban nem teljesített",{"$f":"COUNTIF(B16:B45,\"x\")","v":0},{"$f":"COUNTIF(C16:C45,\"x\")","v":0},0,0,0,0,1,2,0,0,0,0,0,0,1,1,0,0,1,0,0,1,0,0,0,1,1,0,0,1,0,1,2,1,0,0,0,0,1,0,0,1,0,0,0,0,0,0,0,0,0,0,0,0,0,0,0,0,0,0,0,0,1,0,1,{"$f":"COUNTIF(BO16:BO45,\"x\")","v":1},2,2,1,0,0,0,1,1,0,0]
["3. Feladat % Meghatározás",{"$f":"IFERROR(B6/B5,B6)","v":0},{"$f":"IFERROR(C6/C5,C6)","v":0},0,0,0,0,8.3333333333333329E-2,0.15384615384615385,0,0,0,0,0,0,0.14285714285714285,0.2,0,0,0.33333333333333331,0,0,1,0,0,0,1,1,0,0,0.25,0,0.25,0.14285714285714285,0.25,0,0,0,0,0.33333333333333331,0,0,0.125,0,0,0,0,0,0,0,0,0,0,0,0,0,0,0,0,0,0,0,0,1,0,0.1,{"$f":"IFERROR(BO6/BO5,BO6)","v":8.3333333333333329E-2},0.14285714285714285,0.13333333333333333,0.125,0,0,0,0.14285714285714285,0.125,0,0]
[{"$f":"Adatok!A66","v":"4fÖssz."},{"$f":"Adatok!B66","v":"N/A"},{"$f":"Adatok!C66","v":"N/A"},{"$f":"Adatok!D66","v":"N/A"},{"$f":"Adatok!E66","v":"N/A"},{"$f":"Adatok!F66","v":22},{"$f":"Adatok!G66","v":13},{"$f":"Adatok!H66","v":15},{"$f":"Adatok!I66","v":15},{"$f":"Adatok!J66","v":"N/A"},{"$f":"Adatok!K66","v":"N/A"},{"$f":"Adatok!L66","v":"N/A"},{"$f":"Adatok!M66","v":"N/A"},{"$f":"Adatok!N66","v":7},{"$f":"Adatok!O66","v":7},{"$f":"Adatok!P66","v":11},{"$f":"Adatok!Q66","v":10},{"$f":"Adatok!R66","v":8},{"$f":"Adatok!S66","v":12},{"$f":"Adatok!T66","v":2},{"$f":"Adatok!U66","v":5},{"$f":"Adatok!V66","v":1},{"$f":"Adatok!W66","v":1},{"$f":"Adatok!X66","v":0},{"$f":"Adatok!Y66","v":1},{"$f":"Adatok!Z66","v":0},{"$f":"Adatok!AA66","v":3},{"$f":"Adatok!AB66","v":0},{"$f":"Adatok!AC66","v":2},{"$f":"Adatok!AD66","v":0},{"$f":"Adatok!AE66","v":0},{"$f":"Adatok!AF66","v":1},{"$f":"Adatok!AG66","v":2},{"$f":"Adatok!AH66","v":14},{"$f":"Adatok!AI66","v":4},{"$f":"Adatok!AJ66","v":1},{"$f":"Adatok!AK66","v":14},{"$f":"Adatok!AL66","v":8},{"$f":"Adatok!AM66","v":0},{"$f":"Adatok!AN66","v":0},{"$f":"Adatok!AO66","v":0},{"$f":"Adatok!AP66","v":0},{"$f":"Adatok!AQ66","v":9},{"$f":"Adatok!AR66","v":0},{"$f":"Adatok!AS66","v":3},{"$f":"Adatok!AT66","v":6},{"$f":"Adatok!AU66","v":0},{"$f":"Adatok!AV66","v":1},{"$f":"Adatok!AW66","v":1},{"$f":"Adatok!AX66","v":1},{"$f":"Adatok!AY66","v":0},{"$f":"Adatok!AZ66","v":4},{"$f":"Adatok!BA66","v":0},{"$f":"Adatok!BB66","v":0},{"$f":"Adatok!BC66","v":0},{"$f":"Adatok!BD66","v":2},{"$f":"Adatok!BE66","v":3},{"$f":"Adatok!BF66","v":0},{"$f":"Adatok!BG66","v":0},{"$f":"Adatok!BH66","v":0},{"$f":"Adatok!BI66","v":0},{"$f":"Adatok!BJ66","v":0},{"$f":"Adatok!BK66","v":0},{"$f":"Adatok!BL66","v":0},{"$f":"Adatok!BM66","v":0},{"$f":"Adatok!BN66","v":12},{"$f":"Adatok!BO66","v":16},{"$f":"Adatok!BP66","v":19},{"$f":"Adatok!BQ66","v":22},{"$f":"Adatok!BR66","v":17},{"$f":"Adatok!BS66","v":3},{"$f":"Adatok!BT66","v":5},{"$f":"Adatok!BU66","v":8},{"$f":"Adatok!BV66","v":10},{"$f":"Adatok!BW66","v":10},{"$f":"Adatok!BX66","v":6},{"$f":"Adatok!BY66","v":2}]
["4. Feladat Korábban Nem OK",{"$f":"'Temp Korabban Nem OK 4'!B3","v":0},{"$f":"'Temp Korabban Nem OK 4'!C3","v":0},{"$f":"'Temp Korabban Nem OK 4'!D3","v":0},{"$f":"'Temp Korabban Nem OK 4'!E3","v":0},{"$f":"'Temp Korabban Nem OK 4'!F3","v":5},{"$f":"'Temp Korabban Nem OK 4'!G3","v":5},{"$f":"'Temp Korabban Nem OK 4'!H3","v":5},{"$f":"'Temp Korabban Nem OK 4'!I3","v":3},{"$f":"'Temp Korabban Nem OK 4'!J3","v":0},{"$f":"'Temp Korabban Nem OK 4'!K3","v":0},{"$f":"'Temp Korabban Nem OK 4'!L3","v":0},{"$f":"'Temp Korabban Nem OK 4'!M3","v":0},{"$f":"'Temp Korabban Nem OK 4'!N3","v":0},{"$f":"'Temp Korabban Nem OK 4'!O3","v":1},{"$f":"'Temp Korabban Nem OK 4'!P3","v":4},{"$f":"'Temp Korabban Nem OK 4'!Q3","v":4},{"$f":"'Temp Korabban Nem OK 4'!R3","v":2},{"$f":"'Temp Korabban Nem OK 4'!S3","v":4},{"$f":"'Temp Korabban Nem OK 4'!T3","v":2},{"$f":"'Temp Korabban Nem OK 4'!U3","v":1},{"$f":"'Temp Korabban Nem OK 4'!V3","v":0},{"$f":"'Temp Korabban Nem OK 4'!W3","v":0},{"$f":"'Temp Korabban Nem OK 4'!X3","v":0},{"$f":"'Temp Korabban Nem OK 4'!Y3","v":1},{"$f":"'Temp Korabban Nem OK 4'!Z3","v":0},{"$f":"'Temp Korabban Nem OK 4'!AA3","v":0},{"$f":"'Temp Korabban Nem OK 4'!AB3","v":0},{"$f":"'Temp Korabban Nem OK 4'!AC3","v":1},{"$f":"'Temp Korabban Nem OK 4'!AD3","v":0},{"$f":"'Temp Korabban Nem OK 4'!AE3","v":0},{"$f":"'Temp Korabban Nem OK 4'!AF3","v":0},{"$f":"'Temp Korabban Nem OK 4'!AG3","v":0},{"$f":"'Temp Korabban Nem OK 4'!AH3","v":6},{"$f":"'Temp Korabban Nem OK 4'!AI3","v":0},{"$f":"'Temp Korabban Nem OK 4'!AJ3","v":0},{"$f":"'Temp Korabban Nem OK 4'!AK3","v":4},{"$f":"'Temp Korabban Nem OK 4'!AL3","v":1},{"$f":"'Temp Korabban Nem OK 4'!AM3","v":0},{"$f":"'Temp Korabban Nem OK 4'!AN3","v":0},{"$f":"'Temp Korabban Nem OK 4'!AO3","v":0},{"$f":"'Temp Korabban Nem OK 4'!AP3","v":0},{"$f":"'Temp Korabban Nem OK 4'!AQ3","v":2},{"$f":"'Temp Korabban Nem OK 4'!AR3","v":0},{"$f":"'Temp Korabban Nem OK 4'!AS3","v":0},{"$f":"'Temp Korabban Nem OK 4'!AT3","v":2},{"$f":"'Temp Korabban Nem OK 4'!AU3","v":0},{"$f":"'Temp Korabban Nem OK 4'!AV3","v":0},{"$f":"'Temp Korabban Nem OK 4'!AW3","v":0},{"$f":"'Temp Korabban Nem OK 4'!AX3","v":1},{"$f":"'Temp Korabban Nem OK 4'!AY3","v":0},{"$f":"'Temp Korabban Nem OK 4'!AZ3","v":1},{"$f":"'Temp Korabban Nem OK 4'!BA3","v":0},{"$f":"'Temp Korabban Nem OK 4'!BB3","v":0},{"$f":"'Temp Korabban Nem OK 4'!BC3","v":0},{"$f":"'Temp Korabban Nem OK 4'!BD3","v":0},{"$f":"'Temp Korabban Nem OK 4'!BE3","v":1},{"$f":"'Temp Korabban Nem OK 4'!BF3","v":0},{"$f":"'Temp Korabban Nem OK 4'!BG3","v":0},{"$f":"'Temp Korabban Nem OK 4'!BH3","v":0},{"$f":"'Temp Korabban Nem OK 4'!BI3","v":0},{"$f":"'Temp Korabban Nem OK 4'!BJ3","v":0},{"$f":"'Temp Korabban Nem OK 4'!BK3","v":0},{"$f":"'Temp Korabban Nem OK 4'!BL3","v":0},{"$f":"'Temp Korabban Nem OK 4'!BM3","v":0},{"$f":"'Temp Korabban Nem OK 4'!BN3","v":2},{"$f":"'Temp Korabban Nem OK 4'!BO3","v":4},{"$f":"'Temp Korabban Nem OK 4'!BP3","v":3},{"$f":"'Temp Korabban Nem OK 4'!BQ3","v":5},{"$f":"'Temp Korabban Nem OK 4'!BR3","v":4},{"$f":"'Temp Korabban Nem OK 4'!BS3","v":0},{"$f":"'Temp Korabban Nem OK 4'!BT3","v":1},{"$f":"'Temp Korabban Nem OK 4'!BU3","v":3},{"$f":"'Temp Korabban Nem OK 4'!BV3","v":2},{"$f":"'Temp Korabban Nem OK 4'!BW3","v":2},{"$f":"'Temp Korabban Nem OK 4'!BX3","v":1},{"$f":"'Temp Korabban Nem OK 4'!BY3","v":0}]
["4. Feladat Korábban Nem OK-val csökkentett",{"$f":"IF(ISERROR(B8-B9),0,B8-B9)","v":0},0,0,0,{"$f":"IF(ISERROR(F8-F9),0,F8-F9)","v":17},{"$f":"IF(ISERROR(G8-G9),0,G8-G9)","v":8},10,12,0,0,0,0,7,6,7,6,6,8,0,4,1,1,0,0,0,3,0,1,0,0,1,2,8,4,1,10,7,0,0,0,0,7,0,3,4,0,1,1,0,0,3,0,0,0,2,2,0,0,0,0,0,0,0,0,10,12,16,17,13,{"$f":"IF(ISERROR(BS8-BS9),0,BS8-BS9)","v":3},4,5,8,8,5,2]
["4. Feladatban nem teljesített",{"$f":"COUNTIF(B47:B76,\"x\")","v":0},{"$f":"COUNTIF(C47:C76,\"x\")","v":0},0,0,2,1,2,0,0,0,0,0,1,1,1,1,0,0,0,0,0,0,0,0,0,1,0,0,0,0,0,1,0,1,0,2,0,0,0,0,0,0,0,0,0,0,0,0,0,0,1,0,0,0,0,0,0,0,0,0,0,0,0,0,1,{"$f":"COUNTIF(BO47:BO76,\"x\")","v":1},1,1,1,0,0,0,0,0,0,0]
["4. Feladat % Meghatározás",{"$f":"IFERROR(B11/B10,B11)","v":0},{"$f":"IFERROR(C11/C10,C11)","v":0},0,0,0.11764705882352941,0.125,0.2,0,0,0,0,0,0.14285714285714285,0.16666666666666666,0.14285714285714285,0.16666666666666666,0,0,0,0,0,0,0,0,0,0.33333333333333331,0,0,0,0,0,0.5,0,0.25,0,0.2,0,0,0,0,0,0,0,0,0,0,0,0,0,0,0.33333333333333331,0,0,0,0,0,0,0,0,0,0,0,0,0,0.1,{"$f":"IFERROR(BO11/BO10,BO11)","v":8.3333333333333329E-2},6.25E-2,5.8823529411764705E-2,7.6923076923076927E-2,0,0,0,0,0,0,0]
["% Meghatározás  - Összesen:",{"$f":"IF(OR(B14=0,(B5+B10)=0),0,B14/(B5+B10))","v":0},0,0,0,9.0909090909090912E-2,7.1428571428571425E-2,0.13636363636363635,0.08,0,0,0,0,8.3333333333333329E-2,0.1,0.14285714285714285,0.18181818181818182,0,0,0.33333333333333331,0,0,{"$f":"IF(OR(W14=0,(W5+W10)=0),0,W14/(W5+W10))","v":0.5},{"$f":"IF(OR(X14=0,(X5+X10)=0),0,X14/(X5+X10))","v":0},0,0,0.5,1,0,0,0.25,0,0.33333333333333331,9.0909090909090912E-2,0.25,0,9.0909090909090912E-2,0,0,0.33333333333333331,0,0,6.6666666666666666E-2,0,0,0,0,0,0,0,0,0.25,0,0,0,0,0,0,0,0,0,0,0,1,0,0.1,8.3333333333333329E-2,0.1,9.375E-2,9.5238095238095233E-2,0,0,0,6.6666666666666666E-2,6.25E-2,0,0]
["3.-4. feladat nem teljesített",{"$f":"B6+B11","v":0},{"$f":"C6+C11","v":0},0,0,2,1,3,2,0,0,0,0,1,1,2,2,0,0,1,0,0,1,0,0,0,2,1,0,0,1,0,2,2,2,0,2,0,0,1,0,0,1,0,0,0,0,0,0,0,0,1,0,0,0,0,0,0,0,0,0,0,0,1,0,2,{"$f":"BO6+BO11","v":2},3,3,2,0,0,0,1,1,0,0]
["3. feladat"]
["8/3","O-1-2/","C-1-2/","Hullám és cikk-cakk",null,null,null,"x",null,"O-1-2/",null,null,null,null,null,"x","x",null,null,"x",null,null,null,null,null,null,"x","x",null,null,null,null,"x","x","x",null,null,null,null,null,null,null,null,null,null,null,null,null,null,null,null,null,null,null,null,null,null,null,null,null,null,null,null,null,null,"x","x","x","x","x",null,null,null,null,null,null,null,"/3"]
["16/3","O","5)","Bokához leeresztés",null,null,null,null,"x","O",null,"O",null,null,null,null,null,null,null,null,null,null,null,null,null,null,null,null,null,null,"x",null,null,null,null,null,null,null,null,"x",null,null,null,null,null,null,null,null,null,null,null,null,null,null,null,null,null,null,null,null,null,null,null,"x",null,null,null,null,null,null,null,null,null,null,null,null,null,"/3"]
["26/3","5/","O/","Ujjak összefűzése",null,null,null,null,"x","5/",null,"5/",null,null,null,null,null,null,null,null,null,null,"x",null,null,null,null,null,null,null,null,null,null,"x",null,null,null,null,null,null,null,null,"x",null,null,null,null,null,null,null,null,null,null,null,null,null,null,null,null,null,null,null,null,null,null,null,null,"x","x",null,null,null,null,"x","x",null,null,"/3"]
[]
[]
[]
[]
[]
[]
[]
[]
[]
[]
[]
[]
[]
[]
[]
[]
[]
[]
[]
[]
[]
[]
[]
[]
[]
[]
[]
["4. feladat"]
["9/4","C-1-2/",null,null,"Tyúk","x","x","x",null,"C-1-2/","O-1-2/",null,null,"x","x",null,null,null,null,null,null,null,null,null,null,null,null,null,null,null,null,null,null,null,null,null,"x",null,null,null,null,null,null,null,null,null,null,null,null,null,null,"x",null,null,null,null,null,null,null,null,null,null,null,null,null,null,null,null,null,null,null,null,null,null,null,null,null,"/4"]
["18/4","B)",null,null,"Domb","x",null,"x",null,"B)",null,null,null,null,null,"x","x",null,null,null,null,null,null,null,null,null,"x",null,null,null,null,null,"x",null,"x",null,"x",null,null,null,null,null,null,null,null,null,null,null,null,null,null,null,null,null,null,null,null,null,null,null,null,null,null,null,null,"x","x","x","x","x",null,null,null,null,null,null,null,"/4"]

{"sheet":"Temp Korabban Nem OK 3","index":7,"n_rows":8,"n_cols":78,"rows_kept":8,"cut":false,"hidden":true,"merged":[[0,5,0,6],[0,7,0,8],[0,71,0,76],[0,13,0,28],[0,29,0,37],[0,38,0,46],[0,47,0,64],[0,65,0,70]]}
["Sequence number ","Task 1","Task 2","Task 3","Task 4","Nature of association",null,"Number of hands",null,"Active hand form 1","Active hand form 2","Passive hand form 1","Passive hand form 2","Movements",null,null,null,null,null,null,null,null,null,null,null,null,null,null,null,"Areas touched by active hands",null,null,null,null,null,null,null,null,"Areas affected by passive hands",null,null,null,null,null,null,null,null,"Body parts",null,null,null,null,null,null,null,null,null,null,null,null,null,null,null,null,null,"Active",null,null,null,null,null,"Passive"]
[null,"Hand shape","hand shape gymnastics","Movement","Sign-Word-Treasure\n","Visual","Motorized ","One-handed","Two-handed",null,null,null,null,"Opening ","Closing","Up","Down","Towards the body","Away from the body ","Up and down","Back and forth","Cross-Move","X-Move","Infinity ","Clockwise direction\n","Counter-clockwise direction\n","Wave","Zigzag","Fine movement","Active space 1\n","Active space 2","Active space 3","Active space 4","Active space 5","Active space 6","Active space 7","Active space 8","Active space 9","Passive space\n 1","Passive space 2","Passive space\n 3","Passive space\n 4","Passive space\n 5","Passive space\n 6","Passive space\n 7","Passive space\n 8","Passive space\n 9","Head","Forehead/Temple","Eye/Eyebrows","Nose","Mouth","Chin","Cheek","Ear","Neck","Chest","\nAbdomen","Back","Hip","Thigh","Knee","Leg","Ankle","Foot","Active shoulder","Active upper arm","Active elbow","Active forearm","Active wrist","Active nail","Passive shoulder","Passive upper arm","Passive elbow","Passive forearm","Passive wrist","Passive nail"]
[null,null,null,null,null,{"$f":"COUNTIF(F4:F1048576,\"x\")","v":1},3,2,3,0,0,0,0,1,1,1,2,1,1,1,1,0,0,0,0,1,0,0,0,0,1,0,0,4,1,0,1,{"$f":"COUNTIF(AL4:AL1048576,\"x\")","v":1},0,1,0,0,2,0,0,0,0,0,0,0,0,0,0,0,0,0,0,0,0,0,1,0,0,0,0,1,1,1,3,{"$f":"COUNTIF(BR4:BR1048576,\"x\")","v":2},0,0,0,1,3,2,0]
["2/3","S","A","Combhoz leeresztés",null,null,null,null,"x","S ",null,"S ",null,null,null,null,"x","x","x",null,null,null,null,null,null,null,null,null,null,null,"x",null,null,"x",null,null,null,null,null,"x",null,null,"x",null,null,null,null,null,null,null,null,null,null,null,null,null,null,null,null,null,"x",null,null,null,null,null,null,"x","x",null,null,null,null,"x","x",null,null,"/3"]
["3/3","A","A+1","Ablakpucolás",null,null,"x","x",null,"A ",null,null,null,null,null,null,null,null,null,null,null,null,null,null,null,"x",null,null,null,null,null,null,null,"x","x",null,"x","x",null,null,null,null,null,null,null,null,null,null,null,null,null,null,null,null,null,null,null,null,null,null,null,null,null,null,null,"x","x",null,null,null,null,null,null,null,null,null,null,"/3"]
["5/3","A-t","A","Cimbalmozás",null,null,"x",null,"x","A-t",null,"A-t",null,null,null,"x","x",null,null,"x",null,null,null,null,null,null,null,null,null,null,null,null,null,"x",null,null,null,null,null,null,null,null,"x",null,null,null,null,null,null,null,null,null,null,null,null,null,null,null,null,null,null,null,null,null,null,null,null,null,"x","x",null,null,null,null,"x","x",null,"/3"]
["12/3","V","G","\"V\" lecsukva forgatás",null,null,null,null,"x","V","kb. S-3-4",null,null,"x","x",null,null,null,null,null,"x",null,null,null,null,null,null,null,null,null,null,null,null,"x",null,null,null,null,null,null,null,null,null,null,null,null,null,null,null,null,null,null,null,null,null,null,null,null,null,null,null,null,null,null,null,null,null,null,"x","x",null,null,null,null,"x","x",null,"/3"]
["20/3","F","F-c","Tündér kézfogás",null,"x","x","x",null,"F",null,null,null,null,null,null,null,null,null,null,null,null,null,null,null,null,null,null,null,null,null,null,null,null,null,null,null,null,null,null,null,null,null,null,null,null,null,null,null,null,null,null,null,null,null,null,null,null,null,null,null,null,null,null,null,null,null,null,null,null,null,null,null,null,null,null,null,"/3"]

{"sheet":"Temp Korabban Nem OK 4","index":8,"n_rows":11,"n_cols":78,"rows_kept":11,"cut":false,"hidden":true,"merged":[[0,5,0,6],[0,7,0,8],[0,71,0,76],[0,13,0,28],[0,29,0,37],[0,38,0,46],[0,47,0,64],[0,65,0,70]]}
["Sequence number ","Task 1","Task 2","Task 3","Task 4","Nature of association",null,"Number of hands",null,"Active hand form 1","Active hand form 2","Passive hand form 1","Passive hand form 2","Movements",null,null,null,null,null,null,null,null,null,null,null,null,null,null,null,"Areas touched by active hands",null,null,null,null,null,null,null,null,"Areas affected by passive hands",null,null,null,null,null,null,null,null,"Body parts",null,null,null,null,null,null,null,null,null,null,null,null,null,null,null,null,null,"Active",null,null,null,null,null,"Passive"]
[null,"Hand shape","hand shape gymnastics","Movement","Sign-Word-Treasure\n","Visual","Motorized ","One-handed","Two-handed",null,null,null,null,"Opening ","Closing","Up","Down","Towards the body","Away from the body ","Up and down","Back and forth","Cross-Move","X-Move","Infinity ","Clockwise direction\n","Counter-clockwise direction\n","Wave","Zigzag","Fine movement","Active space 1\n","Active space 2","Active space 3","Active space 4","Active space 5","Active space 6","Active space 7","Active space 8","Active space 9","Passive space\n 1","Passive space 2","Passive space\n 3","Passive space\n 4","Passive space\n 5","Passive space\n 6","Passive space\n 7","Passive space\n 8","Passive space\n 9","Head","Forehead/Temple","Eye/Eyebrows","Nose","Mouth","Chin","Cheek","Ear","Neck","Chest","\nAbdomen","Back","Hip","Thigh","Knee","Leg","Ankle","Foot","Active shoulder","Active upper arm","Active elbow","Active forearm","Active wrist","Active nail","Passive shoulder","Passive upper arm","Passive elbow","Passive forearm","Passive wrist","Passive nail"]
[null,null,null,null,null,{"$f":"COUNTIF(F4:F1048576,\"x\")","v":5},{"$f":"COUNTIF(G4:G1048576,\"x\")","v":5},5,3,0,0,0,0,0,1,4,4,2,4,2,1,0,0,0,1,0,0,0,1,0,0,0,0,6,0,0,4,1,0,0,0,0,2,0,0,2,0,0,0,1,0,1,0,0,0,0,1,0,0,0,0,0,0,0,0,2,4,3,5,4,{"$f":"COUNTIF(BS4:BS1048576,\"x\")","v":0},1,3,2,2,1,0]
["2/4","S",null,null,"Bicikli","x","x",null,"x","S ",null,"S",null,null,null,"x","x","x","x","x",null,null,null,null,null,null,null,null,null,null,null,null,null,"x",null,null,null,null,null,null,null,null,"x",null,null,null,null,null,null,null,null,null,null,null,null,null,null,null,null,null,null,null,null,null,null,null,"x","x","x",null,null,null,"x","x","x",null,null,"/4"]
["3/4","A",null,null,"Igen",null,"x","x",null,"A",null,null,null,null,null,"x","x",null,null,"x",null,null,null,null,null,null,null,null,null,null,null,null,null,"x",null,null,null,null,null,null,null,null,null,null,null,null,null,null,null,null,null,null,null,null,null,null,null,null,null,null,null,null,null,null,null,null,null,null,"x","x",null,null,null,null,null,null,null,"/4"]
["5/4","A-t",null,null,"Főz",null,"x","x",null,"A-t",null,null,null,null,null,null,null,"x","x",null,null,null,null,null,"x",null,null,null,null,null,null,null,null,"x",null,null,null,null,null,null,null,null,null,null,null,null,null,null,null,null,null,null,null,null,null,null,null,null,null,null,null,null,null,null,null,null,null,null,"x","x",null,null,null,null,null,null,null,"/4"]
["8/4","O-1-2/",null,null,"Só",null,"x","x",null,"O-1-2/",null,null,null,null,null,null,null,null,null,null,null,null,null,null,null,null,null,null,"x",null,null,null,null,"x",null,null,null,null,null,null,null,null,null,null,null,null,null,null,null,null,null,null,null,null,null,null,null,null,null,null,null,null,null,null,null,null,null,null,null,null,null,null,null,null,null,null,null,"/4"]
["12/4","V",null,null,"Világ","x",null,null,"x","V",null,"V",null,null,null,null,"x",null,null,null,null,null,null,null,null,null,null,null,null,null,null,null,null,"x",null,null,"x",null,null,null,null,null,"x",null,null,"x",null,null,null,null,null,null,null,null,null,null,null,null,null,null,null,null,null,null,null,null,"x","x","x","x",null,null,"x","x","x","x",null,"/4"]
["16/4","O",null,null,"Távcső","x",null,null,"x","O",null,"O",null,null,null,"x","x",null,null,null,"x",null,null,null,null,null,null,null,null,null,null,null,null,null,null,null,"x",null,null,null,null,null,null,null,null,"x",null,null,null,"x",null,null,null,null,null,null,null,null,null,null,null,null,null,null,null,"x","x",null,null,null,null,"x","x",null,null,null,null,"/4"]
["20/4","F",null,null,"Buborék","x","x","x",null,"F",null,null,null,null,null,null,null,null,"x",null,null,null,null,null,null,null,null,null,null,null,null,null,null,null,null,null,"x",null,null,null,null,null,null,null,null,null,null,null,null,null,null,"x",null,null,null,null,null,null,null,null,null,null,null,null,null,null,null,null,null,null,null,null,null,null,null,null,null,"/4"]
["26/4","5/",null,null,"Fény jelv.","x",null,"x",null,"5/","F",null,null,null,"x","x",null,null,"x",null,null,null,null,null,null,null,null,null,null,null,null,null,null,"x",null,null,"x","x",null,null,null,null,null,null,null,null,null,null,null,null,null,null,null,null,null,null,"x",null,null,null,null,null,null,null,null,"x","x","x","x","x",null,null,null,null,null,null,null,"/4"]

{"sheet":"Munka1","index":9,"n_rows":54,"n_cols":77,"rows_kept":54,"cut":false,"hidden":true,"merged":[[0,71,0,76],[0,12,1,12],[0,13,0,28],[0,29,0,37],[0,38,0,46],[0,47,0,64],[0,65,0,70],[0,11,1,11],[0,0,1,0],[0,5,0,6],[0,7,0,8],[0,9,1,9],[0,10,1,10]]}
["Sorsz.","1. feladat","2. feladat","3. feladat","4. feladat","Asszociáció jellege",null,"Kezek száma",null,"Aktív kézf. 1","Aktív kézf. 2","Passzív kézf. 1","Passzív kézf. 2","Mozgások",null,null,null,null,null,null,null,null,null,null,null,null,null,null,null,"Aktív  kézzel érintett térrészek",null,null,null,null,null,null,null,null,"Passzív kézzel érintett térrészek",null,null,null,null,null,null,null,null,"Testrészek",null,null,null,null,null,null,null,null,null,null,null,null,null,null,null,null,null,"Aktív",null,null,null,null,null,"Passzív"]
[null,"Kézforma","Kf. Torna","Mozgás","Jel-Szó-Kincs","Vizuális","Motoros","Egykezes","Kétkezes",null,null,null,null,"Nyíló","Záródó","Felfelé","Lefelé","Test felé","Testtől el","Fel-le","Oda-vissza","Kereszt-mozgás","X-mozgás","Végtelen","Óram. jár. megegy.","Óram. jár. ellent.","Hullám","Cikk-cakk","Finom mozg.","Aktív tér 1","Aktív tér 2","Aktív tér 3","Aktív tér 4","Aktív tér 5","Aktív tér 6","Aktív tér 7","Aktív tér 8","Aktív tér 9","Passzív tér 1","Passzív tér 2","Passzív tér 3","Passzív tér 4","Passzív tér 5","Passzív tér 6","Passzív tér 7","Passzív tér 8","Passzív tér 9","Fej","Homlok/Halánték","Szem/Szemöldök","Orr","Száj","Áll","Orca","Fül","Nyak","Mellkas","Has","Hát","Csípő","Comb","Térd","Lábszár","Boka","Láb","Aktív váll","Aktív felkar","Aktív könyök","Aktív alkar","Aktív csukló","Aktív köröm","Passzív váll","Passzív felkar","Passzív könyök","Passzív alkar","Passzív csukló","Passzív köröm"]
[]
["Össz.","N/A","N/A","N/A","N/A",28,22,30,30,"N/A","N/A","N/A","N/A",13,12,19,17,13,23,6,10,1,2,1,2,2,4,1,2,1,5,2,6,32,9,2,27,12,0,4,0,1,19,1,5,12,0,1,1,4,1,5,2,1,1,2,5,1,0,1,1,1,1,1,1,24,30,34,40,27,3,10,15,18,20,10,2]
[]
["7/3","C-1-2","O-1-2","Oldalra kinyújtás",null,null,null,null,"x","C-1-2",null,"C-1-2",null,null,null,null,null,"x","x",null,"x",null,null,null,null,null,null,null,null,null,null,null,null,null,null,null,"x","x",null,null,null,null,null,null,"x","x",null,null,null,null,null,null,null,null,null,null,null,null,null,null,null,null,null,null,null,"x","x","x","x",null,null,"x","x","x","x"]
["14/3","3/",3,"Fülhöz érintés",null,null,null,null,"x","3/",null,"3/",null,null,null,null,null,null,null,null,null,null,null,null,null,null,null,null,null,null,null,null,null,null,null,null,"x",null,null,null,null,null,null,null,null,"x",null,null,null,null,null,null,null,null,"x"]
["26/3","5/","O/","Ujjak összefűzése",null,null,null,null,"x","5/",null,"5/",null,null,null,null,null,null,null,null,null,null,"x",null,null,null,null,null,null,null,null,null,null,"x",null,null,null,null,null,null,null,null,"x",null,null,null,null,null,null,null,null,null,null,null,null,null,null,null,null,null,null,null,null,null,null,null,null,"x","x",null,null,null,null,"x","x"]
[]
["3/3","A","A+1","Ablakpucolás",null,null,"x","x",null,"A ",null,null,null,null,null,null,null,null,null,null,null,null,null,null,null,"x",null,null,null,null,null,null,null,"x","x",null,"x","x",null,null,null,null,null,null,null,null,null,null,null,null,null,null,null,null,null,null,null,null,null,null,null,null,null,null,null,"x","x"]
["4/3","A+1","B+1","Testtől eltolás",null,null,null,"x",null,"A+1",null,null,null,null,null,null,null,"x","x",null,"x",null,null,null,null,null,null,null,null,null,null,null,null,"x",null,null,null,null,null,null,null,null,null,null,null,null,null,null,null,null,null,null,null,null,null,null,"x",null,null,null,null,null,null,null,null,"x","x","x","x"]
["5/3","A-t","A","Cimbalmozás",null,null,"x",null,"x","A-t",null,"A-t",null,null,null,"x","x",null,null,"x",null,null,null,null,null,null,null,null,null,null,null,null,null,"x",null,null,null,null,null,null,null,null,"x",null,null,null,null,null,null,null,null,null,null,null,null,null,null,null,null,null,null,null,null,null,null,null,null,null,"x","x",null,null,null,null,"x","x"]
["8/3","O-1-2/","C-1-2/","Hullám és cikk-cakk",null,null,null,"x",null,"O-1-2/",null,null,null,null,null,"x","x",null,null,"x",null,null,null,null,null,null,"x","x",null,null,null,null,"x","x","x",null,null,null,null,null,null,null,null,null,null,null,null,null,null,null,null,null,null,null,null,null,null,null,null,null,null,null,null,null,null,"x","x","x","x","x"]
["9/3","C-1-2/","C/","Végtelen",null,null,null,"x",null,"C-1-2/",null,null,null,null,null,null,null,null,null,null,"x",null,null,"x",null,null,null,null,null,null,null,null,"x","x","x",null,null,null,null,null,null,null,null,null,null,null,null,null,null,null,null,null,null,null,null,null,null,null,null,null,null,null,null,null,null,"x","x","x","x","x"]
["10/3","G","S","Sétálás",null,"x","x",null,"x","G",null,"G",null,null,null,"x","x",null,"x","x",null,null,null,null,null,null,null,null,null,null,null,null,null,"x",null,null,"x",null,null,null,null,null,"x",null,null,"x",null,null,null,null,null,null,null,null,null,null,null,null,null,null,null,null,null,null,null,"x","x","x","x",null,null,"x","x","x","x"]
["12/3","V","G","\"V\" lecsukva forgatás",null,null,null,"x",null,"V","kb. S-3-4",null,null,"x","x",null,null,null,null,null,"x",null,null,null,null,null,null,null,null,null,null,null,null,"x",null,null,null,null,null,null,null,null,null,null,null,null,null,null,null,null,null,null,null,null,null,null,null,null,null,null,null,null,null,null,null,null,null,null,"x","x"]
["15/3",3,5,"Orrnál 2.3. ujj görbítés",null,null,null,"x",null,3,"3-2)-3)",null,null,"x","x",null,null,null,null,null,null,null,null,null,null,null,null,null,null,null,null,null,null,null,null,null,"x",null,null,null,null,null,null,null,null,null,null,null,null,null,"x"]
["16/3","O","5)","Bokához leeresztés",null,null,null,null,"x","O",null,"O",null,null,null,null,null,null,null,null,null,null,null,null,null,null,null,null,null,null,"x",null,null,null,null,null,null,null,null,"x",null,null,null,null,null,null,null,null,null,null,null,null,null,null,null,null,null,null,null,null,null,null,null,"x"]
["18/3","B)","B/","Lábszár, lábfej érintés",null,null,null,null,"x","B)",null,"B)",null,null,null,null,null,null,null,null,null,null,null,null,null,null,null,null,null,null,"x",null,null,null,null,null,null,null,null,"x",null,null,null,null,null,null,null,null,null,null,null,null,null,null,null,null,null,null,null,null,null,null,"x",null,"x"]
["19/3","C","O","Poharat 6 polcra",null,"x","x","x",null,"C",null,null,null,null,null,"x",null,null,"x",null,null,null,null,null,null,null,null,null,null,null,null,null,null,"x",null,null,"x",null,null,null,null,null,null,null,null,null,null,null,null,null,null,null,null,null,null,null,null,null,null,null,null,null,null,null,null,"x","x","x","x"]
["20/3","F","F-c","Tündér kézfogás",null,"x","x","x",null,"F"]
["22/3","5)","S","Mérges",null,null,"x","x",null,"5)",null,null,null,null,null,null,null,null,null,null,null,null,null,null,null,"x",null,null,null,null,null,null,null,null,null,null,"x",null,null,null,null,null,null,null,null,null,null,null,null,"x",null,null,null,null,null,null,null,null,null,null,null,null,null,null,null,"x","x","x","x"]
["23/3","O/","S-1","Ujjak kinyitása",null,null,null,"x",null,"O/","5/","O/","5/","x",null,null,null,null,null,null,null,null,null,null,null,null,null,null,null,null,null,null,null,"x",null,null,null,null,null,null,null,null,"x",null,null,null,null,null,null,null,null,"x"]
["24/3","C/","O/","Orca simítása",null,null,null,"x",null,"C/","O/",null,null,null,"x",null,"x",null,"x",null,null,null,null,null,null,null,null,null,null,null,null,null,null,null,null,null,"x",null,null,null,null,null,null,null,null,null,null,null,null,null,null,null,"x","x",null,null,null,null,null,null,null,null,null,null,null,null,null,"x","x","x"]
["25/3","B/","B","Szél, Szellő",null,null,"x",null,"x","B","B/","B/","B","x","x",null,null,"x","x",null,"x",null,null,null,null,null,null,null,null,null,null,null,"x","x","x",null,null,null,null,null,null,"x","x","x",null,null,null,null,null,null,null,null,null,null,null,null,null,null,null,null,null,null,null,null,null,"x","x","x","x","x",null,"x","x","x","x","x"]
["27/3","B",5,"Tenyerek fordítása",null,null,null,null,"x","B",null,"B",null,null,null,"x","x",null,null,null,null,null,null,null,null,null,null,null,null,null,null,null,null,"x",null,null,null,null,null,null,null,null,"x",null,null,null,null,null,null,null,null,null,null,null,null,null,null,null,null,null,null,null,null,null,null,null,null,null,"x",null,null,null,null,null,"x"]
["29/3",4,5,"Söprögetés",null,"x","x","x",null,4,null,null,null,null,null,null,null,null,"x",null,null,null,null,null,null,null,null,null,null,null,null,null,null,"x",null,null,null,null,null,null,null,null,null,null,null,null,null,null,null,null,null,null,null,null,null,null,null,"x",null,null,null,null,null,null,null,null,null,null,null,"x"]
[]
["11/4","L",null,null,"Kettő","x",null,"x",null,"L",null,null,null,null,null,null,null,null,null,null,null,null,null,null,null,null,null,null,null,null,null,null,null,null,null,null,"x"]
[]
["2/4","S",null,null,"Bicikli","x","x",null,"x","S ",null,"S",null,null,null,"x","x","x","x","x",null,null,null,null,null,null,null,null,null,null,null,null,null,"x",null,null,null,null,null,null,null,null,"x",null,null,null,null,null,null,null,null,null,null,null,null,null,null,null,null,null,null,null,null,null,null,null,"x","x","x",null,null,null,"x","x","x"]
["3/4","A",null,null,"Igen",null,"x","x",null,"A",null,null,null,null,null,"x","x",null,null,"x",null,null,null,null,null,null,null,null,null,null,null,null,null,"x",null,null,null,null,null,null,null,null,null,null,null,null,null,null,null,null,null,null,null,null,null,null,null,null,null,null,null,null,null,null,null,null,null,null,"x","x"]
["4/4","A+1",null,null,"Tehén","x",null,null,"x","A+1",null,"A+1",null,null,null,null,null,"x","x",null,"x",null,null,null,null,null,null,null,null,null,null,null,null,null,null,null,"x","x",null,null,null,null,null,null,"x","x",null,null,"x",null,null,null,null,null,null,null,null,null,null,null,null,null,null,null,null,null,null,"x","x",null,null,null,null,"x","x"]
["5/4","A-t",null,null,"Főz",null,"x","x",null,"A-t",null,null,null,null,null,null,null,"x","x",null,null,null,null,null,"x",null,null,null,null,null,null,null,null,"x",null,null,null,null,null,null,null,null,null,null,null,null,null,null,null,null,null,null,null,null,null,null,null,null,null,null,null,null,null,null,null,null,null,null,"x","x"]
["7/4","C-1-2",null,null,"Szivárvány","x",null,"x",null,"C-1-2",null,null,null,null,null,"x","x",null,null,null,null,null,null,null,null,null,null,null,null,null,null,null,"x",null,"x","x","x","x",null,null,null,null,null,null,null,null,null,null,null,null,null,null,null,null,null,null,null,null,null,null,null,null,null,null,null,"x","x","x","x","x"]
["8/4","O-1-2/",null,null,"Só",null,"x","x",null,"O-1-2/",null,null,null,null,null,null,null,null,null,null,null,null,null,null,null,null,null,null,"x",null,null,null,null,"x"]
["9/4","C-1-2/",null,null,"Tyúk","x","x","x",null,"C-1-2/","O-1-2/",null,null,"x","x",null,null,null,null,null,null,null,null,null,null,null,null,null,null,null,null,null,null,null,null,null,"x",null,null,null,null,null,null,null,null,null,null,null,null,null,null,"x"]
["10/4","G",null,null,"Csönd jelv.",null,null,null,"x","G",null,"G",null,null,null,null,null,"x",null,null,null,"x",null,null,null,null,null,null,null,null,null,null,null,null,null,null,"x",null,null,null,null,null,null,null,null,"x",null,null,null,null,null,"x",null,null,null,null,null,null,null,null,null,null,null,null,null,null,null,"x","x","x",null,null,null,"x","x","x"]
["12/4","V",null,null,"Világ","x",null,null,"x","V",null,"V",null,null,null,null,"x",null,null,null,null,null,null,null,null,null,null,null,null,null,null,null,null,"x",null,null,"x",null,null,null,null,null,"x",null,null,"x",null,null,null,null,null,null,null,null,null,null,null,null,null,null,null,null,null,null,null,null,"x","x","x","x",null,null,"x","x","x","x"]
["14/4","3/",null,null,"Csillag","x",null,null,"x","O-2-3-k","3/","O-2-3-k","3/","x","x",null,"x","x",null,null,null,null,null,null,null,null,null,null,null,null,null,null,null,null,null,null,"x","x",null,null,null,null,null,null,"x","x",null,null,null,null,null,null,null,null,null,null,null,null,null,null,null,null,null,null,null,"x","x","x","x","x","x","x","x","x","x","x","x"]
["15/4",3,null,null,"Pihen",null,null,null,"x",3,null,3,null,null,null,null,"x",null,null,null,null,null,null,null,null,null,null,null,null,null,null,null,null,"x",null,null,null,null,null,null,null,null,"x",null,null,null,null,null,null,null,null,null,null,null,null,null,"x",null,null,null,null,null,null,null,null,null,"x","x","x","x",null,null,"x","x","x","x"]
["16/4","O",null,null,"Távcső","x",null,null,"x","O",null,"O",null,null,null,"x","x",null,null,null,"x",null,null,null,null,null,null,null,null,null,null,null,null,null,null,null,"x",null,null,null,null,null,null,null,null,"x",null,null,null,"x",null,null,null,null,null,null,null,null,null,null,null,null,null,null,null,"x","x",null,null,null,null,"x","x"]
["18/4","B)",null,null,"Domb","x",null,"x",null,"B)",null,null,null,null,null,"x","x",null,null,null,null,null,null,null,null,null,"x",null,null,null,null,null,"x",null,"x",null,"x",null,null,null,null,null,null,null,null,null,null,null,null,null,null,null,null,null,null,null,null,null,null,null,null,null,null,null,null,"x","x","x","x","x"]
["19/4","C",null,null,"Zsiráf","x",null,"x",null,"C",null,null,null,null,null,"x",null,null,"x",null,null,null,null,null,null,null,null,null,null,null,null,null,null,null,null,null,"x",null,null,null,null,null,null,null,null,null,null,null,null,null,null,null,null,null,null,"x",null,null,null,null,null,null,null,null,null,"x","x","x","x","x"]
["20/4","F",null,null,"Buborék","x","x","x",null,"F",null,null,null,null,null,null,null,null,"x",null,null,null,null,null,null,null,null,null,null,null,null,null,null,null,null,null,"x",null,null,null,null,null,null,null,null,null,null,null,null,null,null,"x"]
["21/4","F-c",null,null,"Üveggolyó","x",null,"x",null,"F-c",null,null,null,null,null,"x",null,null,"x",null,null,null,null,null,null,null,null,null,null,null,null,null,null,"x",null,null,null,"x",null,null,null,null,null,null,null,null,null,null,null,null,null,null,null,null,null,null,null,null,null,null,null,null,null,null,null,"x","x","x","x","x"]
["22/4","5)",null,null,"Medve","x","x",null,"x","5)",null,"5)",null,"x","x",null,null,"x","x",null,"x",null,"x",null,null,null,null,null,null,null,null,null,null,"x",null,null,null,null,null,null,null,null,"x",null,null,null,null,null,null,null,null,null,null,null,null,null,"x",null,null,null,null,null,null,null,null,null,null,"x","x",null,null,null,null,"x","x"]
["23/4","O/",null,null,"Fáradt","x","x",null,"x","5/","O/","5/","O/",null,"x",null,"x",null,null,null,null,null,null,null,null,null,null,null,null,null,null,null,null,"x",null,null,null,null,null,null,null,null,"x",null,null,null,null,null,null,null,null,null,null,null,null,"x",null,null,null,null,null,null,null,null,null,"x","x","x","x","x",null,"x","x","x","x","x"]
["24/4","C/",null,null,"Kacsa","x","x","x",null,"C/","O/",null,null,"x","x",null,null,null,null,null,null,null,null,null,null,null,null,null,null,null,null,null,null,null,null,null,"x",null,null,null,null,null,null,null,null,null,null,null,null,null,null,"x"]
["25/4","B/",null,null,"Bocsánat",null,null,null,"x","B/",null,"B/",null,null,null,null,null,null,null,null,"x",null,null,null,null,null,null,null,null,null,null,null,null,"x",null,null,null,null,null,null,null,null,"x",null,null,null,null,null,null,null,null,null,null,null,null,null,null,null,null,null,null,null,null,null,null,null,null,"x","x"]
["26/4","5/",null,null,"Fény jelv.","x",null,"x",null,"5/","F",null,null,null,"x","x",null,null,"x",null,null,null,null,null,null,null,null,null,null,null,null,null,null,"x",null,null,"x","x",null,null,null,null,null,null,null,null,null,null,null,null,null,null,null,null,null,null,"x",null,null,null,null,null,null,null,null,"x","x","x","x","x"]
["27/4","B",null,null,"Üdvözlés",null,null,null,"x","B",null,"B",null,null,null,"x",null,null,null,null,null,null,null,null,null,null,null,null,null,null,null,null,null,null,null,null,null,"x",null,null,null,null,null,null,"x",null,null,null,null,null,null,null,null,null,null,null,null,null,null,null,null,null,null,null,null,"x","x","x","x",null,null,"x","x","x","x"]
["29/4",4,null,null,"Fű","x","x",null,"x",4,null,4,null,null,null,null,null,null,"x",null,null,null,null,null,null,null,null,null,"x",null,null,null,null,"x",null,null,null,null,null,null,null,null,"x",null,null,null,null,null,null,null,null,null,null,null,null,null,null,null,null,null,null,null,null,null,null,"x","x","x","x","x",null,"x","x","x","x","x"]
["1/4","S-1",null,null,"Sün","x",null,null,"x",4,null,"S-1",null,null,null,null,null,null,null,null,null,null,null,null,null,null,null,null,null,null,null,null,null,"x",null,null,null,null,null,null,null,null,"x"]